{"text_format":"1","workbook":"xlsx","n_sheets":8,"sheets":["NCR-INDEX","xHidWSH_LJY","NCR-SAP_ARIBA","NCR-NON SAP_ARIBA","Instructions SAP","Main & Sub Defect","Instructions NON-SAP","Main & Sub Causes"],"not_rendered":{"charts":0,"images":1,"macros":1,"external_links":0,"defined_names":96,"comments":1,"pivot_tables":0},"unopened":[],"bounds":{"document_bytes":16777216,"sheet_cells":100000,"rows_first":2000,"rows_last":500,"rows_between":2000,"halvings":0,"cell_chars":16384,"cell_head_chars":4096},"cells_cut":0,"cells_raw":0,"read":"whole","date_system":"1900"}

{"sheet":"NCR-INDEX","index":0,"n_rows":7,"n_cols":12,"rows_kept":7,"cut":false,"hidden":false,"merged":[[5,6,5,9],[1,0,1,9],[3,6,3,9],[0,8,0,11]]}
[null,null,null,null,null,null,null,null,"GTF-21-0016 , Rev 3, Feb 2024"]
["NON-CONFORMANCE REQUEST/REPORT (NCR) - FOR DIRECT PURCHASE ORDERS"]
[]
[null,null,null,null,null,null,"NON-CONFORMANCE REQUEST/REPORT (NCR) - FOR DIRECT SAP / ARIBA ISSUED PURCHASE ORDERS \n(referred to as \"Supplier Request Form\" in the TechnipFMC process)"]
[]
[null,null,null,null,null,null,"NON-CONFORMANCE REQUEST/REPORT (NCR) - FOR DIRECT NON- SAP / ARIBA ISSUED PURCHASE ORDERS \n(referred to as \"Supplier Request Form\" in the TechnipFMC process)"]
[null,null,null,null,null,null,null,null,null,null,null,"hb"]

{"sheet":"xHidWSH_LJY","index":1,"n_rows":0,"n_cols":0,"rows_kept":0,"cut":false,"hidden":true,"merged":[]}

{"sheet":"NCR-SAP_ARIBA","index":2,"n_rows":114,"n_cols":13,"rows_kept":114,"cut":false,"hidden":true,"merged":[[113,3,113,5],[107,3,107,4],[108,3,108,5],[109,3,109,5],[110,0,112,0],[110,1,110,2],[110,3,110,5],[111,1,111,2],[111,3,111,5],[112,1,112,2],[112,3,112,5],[104,0,106,0],[104,1,104,2],[104,3,104,5],[105,1,105,2],[105,3,105,5],[106,1,106,2],[106,3,106,5],[101,1,101,2],[101,3,101,5],[102,0,103,0],[102,1,102,2],[102,3,102,5],[103,1,103,2],[103,3,103,5],[97,0,97,2],[97,3,97,5],[98,0,98,2],[98,3,98,5],[99,3,99,4],[100,3,100,5],[87,0,87,6],[88,0,88,6],[90,0,90,6],[91,0,91,6],[92,0,92,6],[96,0,96,5],[80,0,81,0],[80,1,81,6],[82,0,83,0],[82,1,83,6],[84,0,85,0],[84,1,85,6],[72,0,73,6],[74,0,75,0],[74,1,75,6],[76,0,77,0],[76,1,77,6],[78,0,79,0],[78,1,79,6],[65,0,66,0],[65,1,66,6],[67,0,68,0],[67,1,68,6],[69,0,70,0],[69,1,70,6],[57,0,57,7],[59,0,59,6],[60,0,60,6],[61,0,62,0],[61,1,62,6],[63,0,64,0],[63,1,64,6],[25,1,25,3],[26,1,26,3],[29,1,29,3],[32,0,32,7],[34,1,34,2],[34,5,34,6],[20,1,20,3],[21,1,21,3],[22,1,22,3],[48,1,48,3],[48,5,48,6],[48,7,50,7],[50,1,50,6],[52,1,52,3],[52,5,52,6],[52,7,54,7],[54,1,54,6],[35,1,35,6],[37,1,37,2],[37,5,37,7],[39,0,39,7],[41,1,41,6],[43,4,46,6],[0,1,0,6],[1,0,1,7],[3,0,3,7],[4,3,4,6],[5,1,5,7],[7,1,7,2],[23,1,23,3],[24,1,24,3],[6,9,6,10],[10,1,10,7],[12,0,13,0],[12,1,12,2],[14,1,14,2],[16,0,17,0],[16,1,16,2],[19,1,19,3]]}
[null,null,null,null,null,null,null,"GTF-21-0016 , Rev3, Feb 2024"]
["NON-CONFORMANCE REQUEST/REPORT (NCR) - FOR DIRECT SAP / ARIBA ISSUED PURCHASE ORDERS \n(referred to as \"Supplier Request Form\" in the TechnipFMC process)",null,null,null,null,null,null,null,null,"Test is blank?"]
[null,null,null,null,null,null,"Always reset the form before filling in!"]
["REFERENCES (drop down fields are yellow)",null,null,null,null,null,null,null,null,"Pre-PO & Deviation",null,{"$f":"IF(IF(OR(B8=N1,G8=N1),\"\",\"OK\")=\"\",\"\",IF(SUM(J20,J21,J22,J24,J35,K35,J36,J38,K38,J42,J49,K49,J53,K53,J51,J55,J62,J64,J68,J89)<20,\"\",\"OK\"))","v":""}]
[null,null,null,null,null,null,null,null,null,"Post-PO & Concession",null,{"$f":"IF(IF(OR(B13=N1,G13=N1),\"\",\"OK\")=\"\",\"\",IF(SUM(J13,J15,J17,J20,J21,J22,J24,J30,K30,J35,K35,J36,J38,K38,J42,J44,J49,K49,K44,J51,J53,K53,J55,J62,J64,J66,J68,J70,J75,J77,J79,J81,J83,J85,J89,J92)<36,\"\",\"OK\"))","v":""}]
[null,"Pre-PO Placement",null,null,null,null,null,null,null,"Post-PO & Deviation/Technical Clarification",null,{"$f":"IF(IF(OR(B13=N1,G13=N1,G13=\"Concession\"),\"\",\"OK\")=\"\",\"\",IF(SUM(J13,J15,J17,J20,J21,J22,J24,J30,K30,J35,K35,J36,J38,K38,J42,J44,J49,K49,K44,J51,J53,K53,J55,J62,J64,J68,J89)<27,\"\",\"OK\"))","v":""},{"$f":"IF(AND(B13>0,G13=\"Deviation\"),L5,IF(AND(B13>0,G13=\"Technical Clarification\"),L5,\"\"))","v":""}]
[null,null,null,null,null,null,null,null,null,"Blanks?",null,{"$f":"IF(AND(ISBLANK(B8),ISBLANK(B13))=TRUE,\"OK\",IF(L4=\"OK\",\"OK\",IF(L5=\"OK\",\"OK\",IF(L6=\"OK\",\"OK\",\"\"))))","v":"OK"}]
[" Bid Number, when Pre-PO",null,null,{"$f":"IF(ISBLANK($B$13)=TRUE,\"\",\"N/A\")","v":""},null,"Coding:",null,{"$f":"IF(ISBLANK($B$13)=TRUE,\"\",\"N/A\")","v":""}]
[]
[]
[null,"Post-PO Placement"]
[]
["Purchasing Order (PO):\n(Only ONE PO # per NCR form)",null,null,{"$f":"IF($B$8>\"\",\"N/A\",\"\")","v":""},null,"Coding: ",null,{"$f":"IF($B$8>\"\",\"N/A\",\"\")","v":""},null,{"$f":"IF(ISBLANK(B13)=FALSE,1,IF(ISNUMBER(B13),1,\"\"))","v":""}]
[]
["PO Line:",null,null,{"$f":"IF($B$8>\"\",\"N/A\",\"\")","v":""},null,null,null,null,null,{"$f":"IF(ISBLANK(B15)=FALSE,1,\"\")","v":""}]
[]
["If needed, include more PO lines when same Part Number:",null,null,{"$f":"IF($B$8>\"\",\"N/A\",\"\")","v":""},null,null,null,null,null,{"$f":"IF(ISBLANK(B17)=FALSE,1,\"\")","v":""}]
[]
["if Service PO, please add YES"]
["Created Date:",null,null,null,null,null,null,null,null,{"$f":"IF(ISBLANK(B20)=FALSE,1,\"\")","v":""}]
["Supplier Internal NCR Reference:",null,null,null,null,null,null,null,null,{"$f":"IF(ISBLANK(B21)=FALSE,1,\"\")","v":""}]
["Supplier Name:",null,null,null,null,null,null,null,null,{"$f":"IF(ISBLANK(B22)=FALSE,1,\"\")","v":""}]
["2nd Tier Supplier Name (if relevant)"]
["Supplier Contact Name:",null,null,null,null,null,null,null,null,""]
["Supplier Contact Phone:"]
["TechnipFMC SQE Name:"]
["TechnipFMC Buyer Name:"]
[]
[]
[null,"Required by Engineering Change Notice(ECN)?",null,null,null,{"$f":"IF($B$8>\"\",\"N/A\",\"\")","v":""},"Who discovered the defect?",null,{"$f":"IF($B$8>\"\",\"N/A\",\"\")","v":""},{"$f":"IF(ISBLANK(E30)=FALSE,1,\"\")","v":""},{"$f":"IF(ISBLANK(H30)=FALSE,1,\"\")","v":""}]
[]
[]
["PRODUCT DETAILS (drop down fields are yellow)"]
[]
["TechnipFMC Part Number:",null,null,null,"Revision:",null,null,null,null,{"$f":"IF(ISBLANK(B35)=FALSE,1,\"\")","v":""},{"$f":"IF(ISBLANK(F35)=FALSE,1,\"\")","v":""}]
["Traceability / Serial Number:",null,null,null,null,null,null,null,null,{"$f":"IF(ISBLANK(B36)=FALSE,1,\"\")","v":""}]
[]
["Defect Quantity:",null,null,null,"Part Description:",null,null,null,null,{"$f":"IF(ISBLANK(B38)=FALSE,1,\"\")","v":""},{"$f":"IF(ISBLANK(F38)=FALSE,1,\"\")","v":""}]
[]
[]
[]
["Defect Part Number:",null,null,null,null,null,null,null,null,{"$f":"IF(ISBLANK(B42)=FALSE,1,\"\")","v":""}]
[]
["Serial or Batch Number?",null,{"$f":"IF($B$8>\"\",\"N/A\",\"\")","v":""},"Serial/ Batch Number:",null,null,null,{"$f":"IF($B$8>\"\",\"N/A\",\"\")","v":""},null,{"$f":"IF(ISBLANK(B44)=FALSE,1,\"\")","v":""},{"$f":"IF(ISBLANK(E44)=FALSE,1,\"\")","v":""}]
[]
[]
[]
[]
["Main Defect Code:",null,null,null,"Sub-Defect Code:",null,null,"Select Code Group and Code from drop down menu (ex: Q0001002_Machining_Related 0010 Inside Diameter Error)",null,{"$f":"IF(ISBLANK(B49)=FALSE,1,\"\")","v":""},{"$f":"IF(ISBLANK(F49)=FALSE,1,\"\")","v":""}]
[]
["Defect Comments:",null,null,null,null,null,null,null,null,{"$f":"IF(ISBLANK(B51)=FALSE,1,\"\")","v":""}]
[]
["Main Cause Code:",null,null,null,"Sub-Cause Code:",null,null,"Select Code Group and Code from drop down menu (ex: Q0001010_FMC_Engineering_ Related 0010 Engineering Error)",null,{"$f":"IF(ISBLANK(B53)=FALSE,1,\"\")","v":""},{"$f":"IF(ISBLANK(F53)=FALSE,1,\"\")","v":""}]
[]
["Cause Comments: ",null,null,null,null,null,null,null,null,{"$f":"IF(ISBLANK(B55)=FALSE,1,\"\")","v":""}]
[]
[]
["DESCRIPTION OF FINDING AND ACTIONS"]
[]
["DETAILED DESCRIPTION OF FINDING:"]
["State the requirement and the actual non-conformance. State the containment action performed\n(Include dimensions of non-conformance and measured location referencing existing datum and grid location on drawing)."]
["Source of Requirement: ",null,null,null,null,null,null,null,null,{"$f":"IF(ISBLANK(B62)=FALSE,1,\"\")","v":""}]
[]
["Requirement:",null,null,null,null,null,null,null,null,{"$f":"IF(ISBLANK(B64)=FALSE,1,\"\")","v":""}]
[]
["Actual (Applicable for Concession Request only)",null,null,null,null,null,null,{"$f":"IF($G$13=\"Technical Clarification\",\"N/A\",IF($G$13=\"Deviation\",\"N/A\",IF($B$8>\"\",\"N/A\",\"\")))","v":""},null,{"$f":"IF(ISBLANK(B66)=FALSE,1,\"\")","v":""}]
[]
["Defect Description:",null,null,null,null,null,null,null,null,{"$f":"IF(ISBLANK(B68)=FALSE,1,\"\")","v":""}]
[]
["Containment Action:",null,null,null,null,null,null,{"$f":"IF($G$13=\"Technical Clarification\",\"N/A\",IF($G$8=\"Technical Clarification\",\"N/A\",\"\"))","v":""},null,{"$f":"IF(ISBLANK(B70)=FALSE,1,\"\")","v":""}]
[]
[]
["Root Cause Analysis:\nApplicable only for Concession Request. Required before formal submission. If not valid, provide objective evidence to say otherwise. "]
[]
["1st Why? (Why the problem has occurred). Answer:",null,null,null,null,null,null,{"$f":"IF($G$13=\"Technical Clarification\",\"N/A\",IF($G$13=\"Deviation\",\"N/A\",IF($B$8>\"\",\"N/A\",\"\")))","v":""},null,{"$f":"IF(ISBLANK(B75)=FALSE,1,\"\")","v":""}]
[]
["2nd Why? (Why did the 1st answer occur). Answer:",null,null,null,null,null,null,{"$f":"IF($G$13=\"Technical Clarification\",\"N/A\",IF($G$13=\"Deviation\",\"N/A\",IF($B$8>\"\",\"N/A\",\"\")))","v":""},null,{"$f":"IF(ISBLANK(B77)=FALSE,1,\"\")","v":""}]
[]
["3rd Why? (Why did the 2nd answer occur). Answer:",null,null,null,null,null,null,{"$f":"IF($G$13=\"Technical Clarification\",\"N/A\",IF($G$13=\"Deviation\",\"N/A\",IF($B$8>\"\",\"N/A\",\"\")))","v":""},null,{"$f":"IF(ISBLANK(B79)=FALSE,1,\"\")","v":""}]
[]
["4th Why? (Why did the 3rd answer occur). Answer:",null,null,null,null,null,null,{"$f":"IF($G$13=\"Technical Clarification\",\"N/A\",IF($G$13=\"Deviation\",\"N/A\",IF($B$8>\"\",\"N/A\",\"\")))","v":""},null,{"$f":"IF(ISBLANK(B81)=FALSE,1,\"\")","v":""}]
[]
["5th Why? (Why did the 4th answer occur). Answer:",null,null,null,null,null,null,{"$f":"IF($G$13=\"Technical Clarification\",\"N/A\",IF($G$13=\"Deviation\",\"N/A\",IF($B$8>\"\",\"N/A\",\"\")))","v":""},null,{"$f":"IF(ISBLANK(B83)=FALSE,1,\"\")","v":""}]
[]
["Why?\nAnswer:",null,null,null,null,null,null,{"$f":"IF($G$13=\"Technical Clarification\",\"N/A\",IF($G$13=\"Deviation\",\"N/A\",IF($B$8>\"\",\"N/A\",\"\")))","v":""},null,{"$f":"IF(ISBLANK(B85)=FALSE,1,\"\")","v":""}]
[]
[]
["PROPOSED SOLUTION:\nExplain how to correct the problem with the part."]
[null,null,null,null,null,null,null,null,null,{"$f":"IF(ISBLANK(A89)=FALSE,1,\"\")","v":""}]
[]
["CORRECTIVE ACTION:\nApplicable only for Concession Request. Explain the plan to prevent reoccurrence. "]
[null,null,null,null,null,null,null,{"$f":"IF($G$13=\"Technical Clarification\",\"N/A\",IF($G$13=\"Deviation\",\"N/A\",IF($B$8>\"\",\"N/A\",\"\")))","v":""},null,{"$f":"IF(ISBLANK(A92)=FALSE,1,\"\")","v":""}]
["Note: Supplier shall put in place processes to prevent the reoccurrence of the identified source of the defect."]
[]
[]
[]
["The NCR form shall be submitted in Excel-format by email to the following TechnipFMC Site (Plant) that issued the PO:"]
["North America                                  Subsea & Subsea Services",null,null,"SupplierQualityNotification@technipfmc.com"]
["Dunfermline                                     Subsea",null,null,"ConcessionsSupplier@technipfmc.com"]
["MPM",null,null,"Quality point of Contact for the PO"]
["Bergen                                       ","Subsea",null,"SupplierNCR.Bergen@technipfmc.com "]
["Kongsberg                                    ","Subsea",null,"SupplierNCR.Kongsberg@technipfmc.com",null,null,null," "]
["South America ","Subsea",null,"InspectionSPS@technipfmc.com"]
[null,"Subsea Services",null,"InspectionSPS@technipfmc.com"]
["Asia Pacific","SDS",null,"MalaysiaESG-APSDSQualityNotification@technipfmc.com"]
[null,"REMS",null,"MalaysiaESG-GlobalSupplyVendorQN@technipfmc.com"]
[null,"Subsea Services",null,"MalaysiaESG-SubseaService-VendorQN@technipfmc.com"]
[null,"Other",null,"Commercial Point of Contact (Buyer) for the PO"]
["Australia","Subsea Services",null,"AustraliaESG-SubseaService-VendorQN@technipfmc.com"]
["India","Subsea",null,"India.QN@technipfmc.com."]
["Africa","Angola",null,"AngolaSupplier.concessions@technipfmc.com"]
[null,"Ghana",null,"GhanaSupplier.concessions@technipfmc.com"]
[null,"Nigeria",null,"NigeriaSupplier.concessions@technipfmc.com"]
["East and West","Surface",null,"QNSurface@technipfmc.com"]

{"sheet":"NCR-NON SAP_ARIBA","index":3,"n_rows":93,"n_cols":12,"rows_kept":93,"cut":false,"hidden":true,"merged":[[92,0,92,5],[76,0,77,0],[76,1,77,6],[78,0,79,0],[78,1,79,6],[80,0,81,0],[80,1,81,6],[83,0,83,6],[84,0,84,6],[86,0,86,6],[87,0,87,6],[88,0,88,6],[74,0,75,0],[74,1,75,6],[61,0,62,0],[61,1,62,6],[63,0,64,0],[63,1,64,6],[65,0,66,0],[65,1,66,6],[68,0,69,6],[70,0,71,0],[70,1,71,6],[72,0,73,0],[72,1,73,6],[59,0,60,0],[59,1,60,6],[44,1,44,3],[44,5,44,6],[44,7,46,7],[46,1,46,6],[48,1,48,3],[48,5,48,6],[48,7,50,7],[50,1,50,6],[53,0,53,7],[55,0,55,6],[56,0,56,6],[57,0,58,0],[57,1,58,6],[35,1,35,6],[37,1,37,2],[37,5,37,7],[39,0,39,7],[41,1,41,6],[25,1,25,3],[26,1,26,3],[32,0,32,7],[34,1,34,2],[34,5,34,6],[24,1,24,3],[6,9,6,10],[10,1,10,7],[12,0,13,0],[12,1,12,2],[14,1,14,2],[16,0,17,0],[16,1,16,2],[7,1,7,2],[20,1,20,3],[21,1,21,3],[22,1,22,3],[23,1,23,3],[19,1,19,3],[0,1,0,6],[1,0,1,7],[3,0,3,7],[4,3,4,6],[5,1,5,7]]}
[null,null,null,null,null,null,null,"GTF-21-0016 , Rev3, Feb 2024"]
["NON-CONFORMANCE REQUEST/REPORT (NCR) - FOR DIRECT NON- SAP / ARIBA ISSUED PURCHASE ORDERS \n(referred to as \"Supplier Request Form\" in the TechnipFMC process)",null,null,null,null,null,null,null,null,"Test is blank?"]
[null,null,null,null,null,null,"Always reset the form before filling in!"]
["REFERENCES (drop down fields are yellow)",null,null,null,null,null,null,null,null,"Pre-PO",null,{"$f":"IF(IF(OR(B8=N1,G8=N1),\"\",\"OK\")=\"\",\"\",IF(SUM(J20,J21,J22,J24,J35,K35,J38,K38,J42,J47,J51,J58,J60,J64,J85,J45,K45,J49,K49)<19,\"\",\"OK\"))","v":""}]
[null,null,null,null,null,null,null,null,null,"Post-PO & Concession",null,{"$f":"IF(IF(OR(B13=N1,G13=N1),\"\",\"OK\")=\"\",\"\",IF(SUM(J13,K13,J15,J17,J20,J21,J22,J24,K30,J35,K35,J36,J38,K38,J42,J45,K45,J47,J49,K49,J51,J58,J60,J62,J64,J66,J71,J73,J75,J77,J79,J81,J85,J88)<34,\"\",\"OK\"))","v":""}]
[null,"Pre-PO Placement",null,null,null,null,null,null,null,"Post-PO & Deviation/Technical Clarification",null,{"$f":"IF(IF(OR(B13=N1,G13=N1),\"\",\"OK\")=\"\",\"\",IF(G13=\"Concession\",\"\",IF(SUM(J13,K13,J15,J17,J20,J21,J22,J24,K30,J35,K35,J36,J38,K38,J42,J45,K45,J47,J49,K49,J51,J58,J60,J64,J85)<25,\"\",\"OK\")))","v":""}]
[null,null,null,null,null,null,null,null,null,"Blanks?",null,{"$f":"IF(AND(ISBLANK(B8),ISBLANK(B13))=TRUE,\"OK\",IF(L4=\"OK\",\"OK\",IF(L5=\"OK\",\"OK\",IF(L6=\"OK\",\"OK\",\"\"))))","v":"OK"}]
[" Bid Number, when Pre-PO",null,null,{"$f":"IF(ISBLANK($B$13)=TRUE,\"\",\"N/A\")","v":""},null,"Coding:",null,{"$f":"IF(ISBLANK($B$13)=TRUE,\"\",\"N/A\")","v":""}]
[]
[]
[null,"Post-PO Placement"]
[]
["Purchasing Order (PO):\n(Only ONE PO # per NCR form)",null,null,{"$f":"IF($B$8>\"\",\"N/A\",\"\")","v":""},null,"Coding: ",null,{"$f":"IF($B$8>\"\",\"N/A\",\"\")","v":""},null,{"$f":"IF(ISBLANK(B13)=FALSE,1,\"\")","v":""},{"$f":"IF(ISBLANK(G13)=FALSE,1,\"\")","v":""}]
[]
["PO Line:",null,null,{"$f":"IF($B$8>\"\",\"N/A\",\"\")","v":""},null,null,null,null,null,{"$f":"IF(ISBLANK(B15)=FALSE,1,\"\")","v":""}]
[]
["If needed, include more PO lines ",null,null,{"$f":"IF($B$8>\"\",\"N/A\",\"\")","v":""},null,null,null,null,null,{"$f":"IF(ISBLANK(B17)=FALSE,1,\"\")","v":""}]
[]
["if Service PO, please add YES"]
["Created Date:",null,null,null,null,null,null,null,null,{"$f":"IF(ISBLANK(B20)=FALSE,1,\"\")","v":""}]
["Supplier Internal NCR Reference:",null,null,null,null,null,null,null,null,{"$f":"IF(ISBLANK(B21)=FALSE,1,\"\")","v":""}]
["Supplier Name:",null,null,null,null,null,null,null,null,{"$f":"IF(ISBLANK(B22)=FALSE,1,\"\")","v":""}]
["2nd Tier Supplier Name (if relevant)"]
["Supplier Contact Name:",null,null,null,null,null,null,null,null,""]
["Supplier Contact Phone:"]
["TechnipFMC SQE Name:"]
["TechnipFMC Package manager Name:"]
[]
[]
[null,null,null,null,null,null,"Who discovered the defect?",null,{"$f":"IF($B$8>\"\",\"N/A\",\"\")","v":""},null,{"$f":"IF(ISBLANK(H30)=FALSE,1,\"\")","v":""}]
[]
[]
["PRODUCT DETAILS (drop down fields are yellow)"]
[]
["TechnipFMC reference on the PO, example: Part Nr., Drawing Nr., Material- Requisition Number etc.",null,null,null,"Revision:",null,null,null,null,{"$f":"IF(ISBLANK(B35)=FALSE,1,\"\")","v":""},{"$f":"IF(ISBLANK(F35)=FALSE,1,\"\")","v":""}]
[" Serial Number/Tag Number:",null,null,null,null,null,null,{"$f":"IF($B$8>\"\",\"N/A\",\"\")","v":""},null,{"$f":"IF(ISBLANK(B36)=FALSE,1,\"\")","v":""}]
[]
["Defect Quantity:",null,null,null,"Part item Description:",null,null,null,null,{"$f":"IF(ISBLANK(B38)=FALSE,1,\"\")","v":""},{"$f":"IF(ISBLANK(F38)=FALSE,1,\"\")","v":""}]
[]
[]
[]
["Project Number/ Name:",null,null,null,null,null,null,null,null,{"$f":"IF(ISBLANK(B42)=FALSE,1,\"\")","v":""}]
[]
[]
["Main Defect Code:",null,null,null,null,null,null,"Select Code Group and Code from drop down menu (ex: Q0001002_Machining_Related 0010 Inside Diameter Error)",null,{"$f":"IF(ISBLANK(B45)=FALSE,1,\"\")","v":""},{"$f":"IF(ISBLANK(F45)=FALSE,1,\"\")","v":""}]
[]
["Defect Comments:",null,null,null,null,null,null,null,null,{"$f":"IF(ISBLANK(B47)=FALSE,1,\"\")","v":""}]
[]
["Main Cause Code:",null,null,null,"Sub-Cause Code:",null,null,"Select Code Group and Code from drop down menu (ex: Q0001010_FMC_Engineering_ Related 0010 Engineering Error)",null,{"$f":"IF(ISBLANK(B49)=FALSE,1,\"\")","v":""},{"$f":"IF(ISBLANK(F49)=FALSE,1,\"\")","v":""}]
[]
["Cause Comments: ",null,null,null,null,null,null,null,null,{"$f":"IF(ISBLANK(B51)=FALSE,1,\"\")","v":""}]
[]
[]
["DESCRIPTION OF FINDING AND ACTIONS"]
[]
["DETAILED DESCRIPTION OF FINDING:"]
["State the requirement and the actual non-conformance. State the containment action performed\n(Include dimensions of non-conformance and measured location referencing existing datum and grid location on drawing)."]
["Source of Requirement: ",null,null,null,null,null,null,null,null,{"$f":"IF(ISBLANK(B58)=FALSE,1,\"\")","v":""}]
[]
["Requirement:",null,null,null,null,null,null,null,null,{"$f":"IF(ISBLANK(B60)=FALSE,1,\"\")","v":""}]
[]
["Actual (Applicable for Concession Request only)",null,null,null,null,null,null,{"$f":"IF($G$13=\"Technical Clarification\",\"N/A\",IF($G$13=\"Deviation\",\"N/A\",IF($B$8>\"\",\"N/A\",\"\")))","v":""},null,{"$f":"IF(ISBLANK(B62)=FALSE,1,\"\")","v":""}]
[]
["Defect Description:",null,null,null,null,null,null,null,null,{"$f":"IF(ISBLANK(B64)=FALSE,1,\"\")","v":""}]
[]
["Containment Action:",null,null,null,null,null,null,{"$f":"IF($G$13=\"Technical Clarification\",\"N/A\",IF($G$8=\"Technical Clarification\",\"N/A\",\"\"))","v":""},null,{"$f":"IF(ISBLANK(B66)=FALSE,1,\"\")","v":""}]
[]
[]
["Root Cause Analalysis: Applicable for Concession requests, see Instruction Tab for moe Info."]
[]
["1st Why? (Why the problem has occurred). Answer:",null,null,null,null,null,null,{"$f":"IF($G$13=\"Technical Clarification\",\"N/A\",IF($G$13=\"Deviation\",\"N/A\",IF($B$8>\"\",\"N/A\",\"\")))","v":""},null,{"$f":"IF(ISBLANK(B71)=FALSE,1,\"\")","v":""}]
[]
["2nd Why? (Why did the 1st answer occur). Answer:",null,null,null,null,null,null,{"$f":"IF($G$13=\"Technical Clarification\",\"N/A\",IF($G$13=\"Deviation\",\"N/A\",IF($B$8>\"\",\"N/A\",\"\")))","v":""},null,{"$f":"IF(ISBLANK(B73)=FALSE,1,\"\")","v":""}]
[]
["3rd Why? (Why did the 2nd answer occur). Answer:",null,null,null,null,null,null,{"$f":"IF($G$13=\"Technical Clarification\",\"N/A\",IF($G$13=\"Deviation\",\"N/A\",IF($B$8>\"\",\"N/A\",\"\")))","v":""},null,{"$f":"IF(ISBLANK(B75)=FALSE,1,\"\")","v":""}]
[]
["4th Why? (Why did the 3rd answer occur). Answer:",null,null,null,null,null,null,{"$f":"IF($G$13=\"Technical Clarification\",\"N/A\",IF($G$13=\"Deviation\",\"N/A\",IF($B$8>\"\",\"N/A\",\"\")))","v":""},null,{"$f":"IF(ISBLANK(B77)=FALSE,1,\"\")","v":""}]
[]
["5th Why? (Why did the 4th answer occur). Answer:",null,null,null,null,null,null,{"$f":"IF($G$13=\"Technical Clarification\",\"N/A\",IF($G$13=\"Deviation\",\"N/A\",IF($B$8>\"\",\"N/A\",\"\")))","v":""},null,{"$f":"IF(ISBLANK(B79)=FALSE,1,\"\")","v":""}]
[]
["Why?\nAnswer:",null,null,null,null,null,null,{"$f":"IF($G$13=\"Technical Clarification\",\"N/A\",IF($G$13=\"Deviation\",\"N/A\",IF($B$8>\"\",\"N/A\",\"\")))","v":""},null,{"$f":"IF(ISBLANK(B81)=FALSE,1,\"\")","v":""}]
[]
[]
["Proposed Solution:Explain how to correct the problem with the part"]
[null,null,null,null,null,null,null,null,null,{"$f":"IF(ISBLANK(A85)=FALSE,1,\"\")","v":""}]
[]
["CORRECTIVE ACTION:\nApplicable only for Concession Request. Explain the plan to prevent reoccurrence. "]
[null,null,null,null,null,null,null,{"$f":"IF($G$13=\"Technical Clarification\",\"N/A\",IF($G$13=\"Deviation\",\"N/A\",IF($B$8>\"\",\"N/A\",\"\")))","v":""},null,{"$f":"IF(ISBLANK(A88)=FALSE,1,\"\")","v":""}]
[]
[]
[]
[]
["The NCR form shall be submitted in Excel-format by email to the person of contact and Quality function  as stated in the kick off meeting."]

{"sheet":"Instructions SAP","index":4,"n_rows":90,"n_cols":2,"rows_kept":90,"cut":false,"hidden":true,"merged":[[75,0,76,2],[88,0,88,2],[89,0,89,2],[54,0,59,0],[0,0,0,1],[41,0,41,1],[42,0,48,0],[60,0,62,0],[64,0,64,1]]}
["NCR Instructions"]
["Field","Description"]
["General"]
[" Reset Form Fields","This button will empty all the \"filled-in\" cells, except the following References fields:\n\nIt will also reset all selected buttons (i.e. a blank form), We advise all suppliers to Reset before filling in, this is in case supplier is using a prefilled form from before,"]
["Practical Info.","Supplier shall  fill in either Pre-PO information Or Post PO not Both,                                                                                                        If PO exist, then start the form by filling in the PO ( Post PO- LINE 13) , select the correct Coding  from the Menu and fill in the rest of mandatory fields.                                                                                                                                                                                                  if PO doesnt exist , Pre PO selection(Line 8) shall be filled in: Start the form by filling in the Bid number , select the correct Coding and continue filling in other mandatory fields."]
["REFERENCES"]
[" Coding:\n• Concession Request\n• Deviation Request\n• Technical Clarification","This is how the NCR get Categorized.  Supplier shall select 1 code and selecting between buttons on the menu will result in setting \"N/A\" in some of the cells depending on the selection type.\n"]
[" Created Date","The date that Supplier generated the NCR Form."]
[" Bid Number, when Pre-PO","TechnipFMC Bid number applicable when PO is not gererated( Pre-PO). Only ONE Bid Number per NCR form. . Bid number to be recieved by Buyer or from Ariba. "]
[" Purchase Order (PO)","TechnipFMC purchase order number. Only ONE PO# per NCR form. "]
[" PO Line","TechnipFMC purchase order line item number. "]
[" If needed, include more PO lines  when same Part Number","Multiple PO line numbers if the non-conformance is for the same PO and Part Number. Put NA if not applicable,"]
[" Supplier Internal NCR Reference\n","Supplier internal NCR number to track Quality Notifications .This number will be tracked by the Supplier to ensure no duplicates are created. "]
["If Service PO, add Yes","Suppliers to fill in YES or NO from the menu"]
[" Supplier Name","Supplier full legal entity name with no abbreviations."]
["2cond Tier supplier name"," If the issue is coming from sub-supplier, then supplier to give the name of their sub-supplier"]
[" Supplier Contact Name","The person that should be contacted with any questions regarding the information on the QN."]
[" Supplier Contact Phone","The contact person's phone number."]
[" TechnipFMC SQE Name","The regional TechnipFMC Supplier Quality Engineer (SQE) who trains and develops the Supplier."]
[" TechnipFMC Buyer Name","The TechnipFMC Commercial Point of Contact, the Buyer who manage the PO with the Supplier."]
[" Coding","This is how Supplier generated QNs are categorized.  This must be filled in by the Supplier. You must select 1 code."]
[" Concession Request","\nDefect detected and reported by Supplier at a later stage and when  the relevnt process is already done or product is  finalized (Post realization). Supplier shall propose a solution, and TechnipFMC provide a disposition.                                      This includes also Product Alerts / Recalls. In case of the product Alerts/ Recalls supplier shall use Post PO Placement Concession coding  per part number and  if more than one Purchase Order is impacted by the same Product Alert / Recall, then the Supplier shall reference all applicable Purchase Orders impacted in the Containment Action field of the NCR form. Supplier shall also list all the affected Serial numbers on the Serial number field of the NCR Form.\n"]
[" Deviation Request","Request to deviate from the required specification, prior to the work being done, e.g. material substitution, heat treat time, etc."]
[" Technical Clarification ","A request for clarity or to obtain detailed information concerning technical requirements, e.g. engineering specifications, drawings, BOM, production requirements."]
[" Required by ECN?","Is the non-conformance being generated due to a TechnipFMC Engineering Change Notice? Select either \"Yes\" or \"No\"."]
[" Who discovered the defect?","Select from dropdown menu if Supplier or Source Inspector discovered the defect."]
["PRODUCT DETAILS"]
[" Technip FMC Part Number","Part number on the PO."]
[" Traceability /Serial Number","Traceability of the part on the PO."]
[" Part Description","Description of the part on the PO."]
[" Revision","Revision of the part on the PO."]
[" Defect Quantity","Total number of defects from the part number on the PO."]
[" Defect Part Number","Actual Part number which has defects(Nonconformity related  to Non-fulfiment of a requirement). This could be a sub-level part number or part number on the PO depending where the defect originates."]
[" Serial or Batch number","Select from dropdown menu if it is Serial or Batch Number, and enter the applicable number ( This is the Traceability related to the part which has defects)"]
["CLASSIFICATIONS"]
["Main Defect code","Select  from drop down menu. "]
["Sub-Defect code","Select from drop down menu. "]
["Main Cause Code","Select from drop down menu. "]
["Sub-Cause Code","Select from drop down menu."]
["Defect Comments","Additional information  can be added here. If this is already covered by the Defect code  menus  put NA"]
["Cause Comments","Additional information  can be added here. If this is already covered by the Cause code menus put NA"]
["DESCRIPTION OF FINDING AND ACTIONS"]
["Detailed Description of Finding","The description should be concise and include all of the following information in every case:"]
[null,"Description of the defect or problem"]
[null,"Measured size (when applicable)"]
[null,"Measured depth (when applicable)"]
[null,"Measured location of the defect (when applicable)"]
[null,"This measurement should be from an existing datum on the drawing which should be noted along with the grid location on the drawing (i.e., “located at A3 on drawing 1111DU11111111”)"]
[null,"List of TechnipFMC Requirements/Specifications"]
["Source of Requirement","Where is the requirement coming from? Name the document number, revision, and sections if possible."]
["Requirement","What is the requirement? Be specific, clear, and concise. Paraphrase or quote the actual requirement from the source."]
["Actual (Only for Concession Request)","Simply state the defect."]
["Defect Description","Explain the actual state / non-conformance in detail. Give measurements, locations, etc. Attach helpful evidence; i.e. pictures, mark-ups, inspection reports, etc. "]
["Containment Action","Explain how the non-conformance has been physically controlled. How has unintended use been prevented?"]
["Root Cause Analysis \nOnly for Concession Request","This section of the form is critical to determine the real reason why the non-conformance was caused."]
[null,"Provide a 5-Why  for Concession Requests. Why did this non-conformance occur? "]
[null,"Continuing to ask why until the real root cause is determined will help reduce future occurrences of this problem."]
[null,"This explanation should be detailed and address the root cause of the non-conformance; not the symptoms. "]
[null,"If the 5-Why tool is not sufficient to reach the root cause, a Cause and Effect Diagram (Fishbone) or 8-D can be used and attached to this NCR."]
[null,"NOTE: The NCR type Concession will not be entered into TechnipFMC system for disposition until a Root Cause Analysis is provided. "]
["Proposed Solution","A proposed solution to bring the part as close to conforming to the Part Report and Drawing as possible."]
[null,"This should include a detailed description of the process to be followed to repair the part."]
[null,"This should note exactly which requirements on the Part Report and Drawing will not be met after repairing or processing the part. (i.e., after repair, the diameter will be +.002” out of tolerance)"]
["Corrective Action\n(Only for Concession Request)","Address the plan to reduce and eliminate the non-conformance in the future. This explanation should compliment the above Root Cause Analysis section.\nNote: It is not necessary for the Corrective Action to be put in place at the Supplier at time of NCR submittal. However, the plan must be described prior to the NCR being entered into TechnipFMC' system for disposition."]
["Relese Note"]
[null,"The relese note below contain information about the current release and contact information for technical support for the VBA macros in this NCR form. Please click the button below to show the information (password is required)"]
[]
[]
[]
[]
[]
[]
[]
[]
[]
["Release Note (for VBA macros)"]
[]
[]
["VBA Created by","Layth Alattar"]
["Email","Layth.alattar@technipfmc.com"]
[]
["VBA technical support\n(only for TechnipFMC users.)\n\nFor technical support of supplier users, please use the contact information in the front page.","Layth Alattar\nLayth.alattar@technipfmc.com"]
[]
["Document number","GTF-COR-21011"]
["Document Name","SUPPLIER NON-CONFORMANCE REPORT FORM"]
["Revision",0]
[]
[]
["Summary of changes in this release"]
["• The main improvement from Rev H ro Rav I is solving the problem with disappearing of the button selection in the NCR tab. I.e when we select \"concession\" and save the document, when we open the document again the button selection is cleared.\n\n• New VBA macros to make sure that all required field are filed in.\n\n• VBA macro called \"Empty Cell checker\" to give an overview of all the empty cells, and to give a warning message if any mandatory cells left blank.\n\n•VBA macro to Reset Form (i.e. empty all cells and reset all buttons).\n\n• Important feature! The supplier can only save the \"Form\" with a mandatory \"warning text\" at the top of the document in case any mandatory cells were left blank. The TechnipFMC user can still be able to save the Form without the mandatory \"warning text\" by using the administrator password.\nThis feature prevents from sending uncomplete Form to technipFMC since the a mandatory \"warning text\" will be always at the top, in case any mandatory cells were left blank\n\n•Remove the \"Contaiment Action\" form the mandatory cells for Pre-Po \"Deviation\" and  Pre-Po \"Technical Clarification\".\n\n"]

{"sheet":"Main & Sub Defect","index":5,"n_rows":902,"n_cols":20,"rows_kept":902,"cut":false,"hidden":true,"merged":[]}
["Code group","Code",null,null,null,"Codegroup",null,"_Q1005090_DocumentationRequirement",null,"_90000001_Physical",null,"_90000002_PartreportorDrawing",null,"Table_Catergory","Category","Code",null,"Category",null,{"$f":"'NCR-NON SAP_ARIBA'!B45","v":0}]
["Q1005090(Documentation Requirement)","0001 Purchase Order",null,"Q1005090_DocumentationRequirement",null,"_Q1005090_DocumentationRequirement",null,"0001 Purchase Order",null,"0010 Corrosion",null,"0010 Incorrect requirement - Part Report",null,null,"Accessory","Coating Defect",null,{"$f":"_xlfn.UNIQUE(Table_Category[Category])","v":"Accessory"},null,{"$f":"_xlfn._xlws.FILTER(Table_Category[Code],Table_Category[Category]=T1)","v":{"$error":"#VALUE!"}}]
["Q1005090(Documentation Requirement)","0002 Routing",null,"90000001_Physical",null,"_90000001_Physical",null,"0002 Routing",null,"0020 Damage",null,"0020 Missing Requirement - Part Report",null,null,"Accessory","Component Damage",null,"Armor"]
["Q1005090(Documentation Requirement)","0003 Part Description / Drawing",null,"90000002_PartreportorDrawing",null,"_90000002_PartreportorDrawing",null,"0003 Part Description / Drawing",null,"0030 Dimensional",null,"0030 Incorrect requirement - Drawing",null,null,"Accessory","Contract Review",null,"Assembly"]
["Q1005090(Documentation Requirement)","0004 Part data (Trim / Temp / PSL level)",null,null,null,null,null,"0004 Part data (Trim / Temp / PSL level)",null,"0040 Failure to function",null,"0040 Missing Requirement - Drawing",null,null,"Accessory","Criteria Not Conform to Specification",null,"Braiding"]
["Q1005090(Documentation Requirement)","0005 Part BOM",null,null,null,null,null,"0005 Part BOM",null,"0050 Not Preserved",null,"0050 Other- Specify in comments",null,null,"Accessory","Incorrect Documentation",null,"Carcass"]
["Q1005090(Documentation Requirement)","0006 Quality Matrix",null,null,null,null,null,"0006 Quality Matrix",null,"0060 Missing part / Quantity error",null,null,null,null,"Accessory","Notification Incident",null,"Documentation"]
["Q1005090(Documentation Requirement)","0007 Engineering Notes",null,null,null,null,null,"0007 Engineering Notes",null,"0070 Shelf life Expired",null,null,null,null,"Accessory","Process",null,"End Fitting"]
["Q1005090(Documentation Requirement)","0008 Production Docs (TDS / ASY / TST / DCP)",null,null,null,null,null,"0009 Service Docs (ICP / HFT / TDI / THI / PSM)",null,"0080 Marking error",null,null,null,null,"Accessory","Surface Defect",null,"Equipment"]
["Q1005090(Documentation Requirement)","0009 Service Docs (ICP / HFT / TDI / THI / PSM)",null,null,null,null,null,"0010 Specification type C, E, G, M, P, Q, W",null,"0090 Welding",null,null,null,null,"Accessory","Test Results Out of Criteria",null,"Extrusion"]
["Q1005090(Documentation Requirement)","0010 Specification type C, E, G, M, P, Q, W",null,null,null,null,null,"0011 Other- Specify in comments",null,"0100 Assembly error",null,null,null,null,"Accessory","Traceability",null,"Flexible Installation (Pipelay)"]
["Q1005090(Documentation Requirement)","0011 Other- Specify in comments",null,null,null,null,null,"0012 Missing Documentation",null,"0110 Testing error",null,null,null,null,"Armor","Bitumen - Coverage",null,"Foam"]
["Q1005090(Documentation Requirement)","0012 Missing Certificates / Records",null,null,null,null,null,"0013 Incorrect Documentation",null,"0120 Coating Defect",null,null,null,null,"Armor","Bitumen - Temperature",null,"General"]
["Q1005090(Documentation Requirement)","0013 Incorrect Certificates / Records",null,null,null,null,null,"0014 Missing user documentation (customer)",null,"0130 Other- Specify in comments",null,null,null,null,"Armor","Breakdown",null,"Helical Assembly"]
["Q1005090(Documentation Requirement)","0014 Missing user documentation (customer)",null,null,null,null,null,"0015 Incorrect user documentation (customer)",null,null,null,null,null,null,"Armor","Bundle - Assembly",null,"Loadout"]
["Q1005090(Documentation Requirement)","0015 Incorrect user documentation (customer)",null,null,null,null,null,"0016 Procedure / Process Error",null,null,null,null,null,null,"Armor","Bundle - Bird Cage",null,"Machining"]
["Q1005090(Documentation Requirement)","0016 Procedure / Process Error",null,null,null,null,null,"0017 Attributes Missing",null,null,null,null,null,null,"Armor","Bundle - Crushed",null,"Material"]
["Q1005090(Documentation Requirement)","0017 Attributes Missing",null,null,null,null,null,"0018 Attributes Mismatch",null,null,null,null,null,null,"Armor","Bundle - Damage",null,"Operational"]
["Q1005090(Documentation Requirement)","0018 Attributes Mismatch",null,null,null,null,null,"0019 Procedure/Specification Not Approved",null,null,null,null,null,null,"Armor","Bundle - Length",null,"Packaging"]
["Q1005090(Documentation Requirement)","0019 Procedure/Specification Not Approved",null,null,null,null,null,"0020 Not Legible",null,null,null,null,null,null,"Armor","Bundle - OD",null,"Packing"]
["Q1005090(Documentation Requirement)","0020 Not Legible",null,null,null,null,null,"0021 Open QN on Part/Equipment",null,null,null,null,null,null,"Armor","Bundle - Tension",null,"Painting / Coating / Insulation"]
["Q1005090(Documentation Requirement)","0021 Open QN on Part/Equipment",null,null,null,null,null,"0022 ECN not amended",null,null,null,null,null,null,"Armor","Control Not Performed",null,"Post Weld Heat Treatment"]
["Q1005090(Documentation Requirement)","0022 ECN not amended",null,null,null,null,null,"0023 TechnipFMC Provided Item Discrepancy",null,null,null,null,null,null,"Armor","Data Acquisition",null,"Pressure Vault"]
["Q1005090(Documentation Requirement)","0023 TechnipFMC Provided Item Discrepancy",null,null,null,null,null,"0024 Quantity Mismatch",null,null,null,null,null,null,"Armor","Defect on Wire",null,"Rebatch"]
["Q1005090(Documentation Requirement)","0024 Quantity Mismatch",null,null,null,null,null,"0025 Serialization not batch management",null,null,null,null,null,null,"Armor","Diameter out of Criteria",null,"Respool"]
["Q1005090(Documentation Requirement)","0025 Serialization not batch management",null,null,null,null,null,"0026 Batch management not serialization",null,null,null,null,null,null,"Armor","Documentation",null,"Sheath"]
["Q1005090(Documentation Requirement)","0026 Batch management not serialization",null,null,null,null,null,"0027 Information Missing in Documentation",null,null,null,null,null,null,"Armor","Drum",null,"Steel Strip"]
["Q1005090(Documentation Requirement)","0027 Information Missing in Certification",null,null,null,null,null,"0028 Information Incorrect in Documentation",null,null,null,null,null,null,"Armor","Entangled Wire",null,"Stiffener"]
["Q1005090(Documentation Requirement)","0028 Information Incorrect in Certification",null,null,null,null,null,"0030 Not Maintained / Expired Certification",null,null,null,null,null,null,"Armor","Gap out of Criteria",null,"Storage / Logistics"]
["Q1005090(Documentation Requirement)","0029 Incorrect Certification ",null,null,null,null,null,null,null,null,null,null,null,null,"Armor","Hooks out of Criteria",null,"SZ Assembly"]
["Q1005090(Documentation Requirement)","0030 Not Maintained / Expired Certification",null,null,null,null,null,null,null,null,null,null,null,null,"Armor","Material",null,"Tape"]
["QDA_0001(Physical)","0010 Corrosion",null,null,null,null,null,null,null,null,null,null,null,null,"Armor","Other",null,"Testing"]
["QDA_0001(Physical)","0020 Damage",null,null,null,null,null,null,null,null,null,null,null,null,"Armor","Oxidation",null,"Thermoplastic"]
["QDA_0001(Physical)","0030 Dimensional",null,null,null,null,null,null,null,null,null,null,null,null,"Armor","Pitch out of Criteria",null,"Tooling"]
["QDA_0001(Physical)","0040 Failure to function",null,null,null,null,null,null,null,null,null,null,null,null,"Armor","Poor Lay",null,"Transpool"]
["QDA_0001(Physical)","0050 Not Preserved",null,null,null,null,null,null,null,null,null,null,null,null,"Armor","Roving - Damage",null,"Tube Bending"]
["QDA_0001(Physical)","0060 Missing part / Quantity error",null,null,null,null,null,null,null,null,null,null,null,null,"Armor","Roving - Snapped",null,"Welding"]
["QDA_0001(Physical)","0070 Shelf life Expired",null,null,null,null,null,null,null,null,null,null,null,null,"Armor","Roving - Tension",null,"Wire"]
["QDA_0001(Physical)","0080 Marking error",null,null,null,null,null,null,null,null,null,null,null,null,"Armor","Roving - Wrong/Missing",null,"Yarn Winding"]
["QDA_0001(Physical)","0090 Welding",null,null,null,null,null,null,null,null,null,null,null,null,"Armor","Sloping Defect"]
["QDA_0001(Physical)","0100 Assembly error",null,null,null,null,null,null,null,null,null,null,null,null,"Armor","Sub Bundle - Crushed"]
["QDA_0001(Physical)","0110 Testing error",null,null,null,null,null,null,null,null,null,null,null,null,"Armor","Sub Bundle - Damage"]
["QDA_0001(Physical)","0120 Coating Defect",null,null,null,null,null,null,null,null,null,null,null,null,"Armor","Sub Bundle - Length"]
["QDA_0001(Physical)","0130 Other- Specify in comments",null,null,null,null,null,null,null,null,null,null,null,null,"Armor","Sub Bundle - OD"]
["QDA_0004 (Part report/ Drawing)","0010 Incorrect requirement - Part Report",null,null,null,null,null,null,null,null,null,null,null,null,"Armor","Sub Bundle - Tension"]
["QDA_0004 (Part report/ Drawing)","0020 Missing Requirement - Part Report",null,null,null,null,null,null,null,null,null,null,null,null,"Armor","Tooling"]
["QDA_0004 (Part report/ Drawing)","0030 Incorrect requirement - Drawing",null,null,null,null,null,null,null,null,null,null,null,null,"Armor","Traceability"]
["QDA_0004 (Part report/ Drawing)","0040 Missing Requirement - Drawing",null,null,null,null,null,null,null,null,null,null,null,null,"Armor","Weld Defect"]
["QDA_0004 (Part report/ Drawing)","0050 Other- Specify in comments",null,null,null,null,null,null,null,null,null,null,null,null,"Armor","Weld Location"]
[null,null,null,null,null,null,null,null,null,null,null,null,null,null,"Armor","Wire - Cast"]
[null,null,null,null,null,null,null,null,null,null,null,null,null,null,"Armor","Wire - Damage"]
[null,null,null,null,null,null,null,null,null,null,null,null,null,null,"Armor","Wire - Grade"]
[null,null,null,null,null,null,null,null,null,null,null,null,null,null,"Armor","Wire - Length"]
[null,null,null,null,null,null,null,null,null,null,null,null,null,null,"Armor","Wire - OD"]
[null,null,null,null,null,null,null,null,null,null,null,null,null,null,"Armor","Wire - Packing Density"]
[null,null,null,null,null,null,null,null,null,null,null,null,null,null,"Armor","Wire - Pitch"]
[null,null,null,null,null,null,null,null,null,null,null,null,null,null,"Armor","Wire - Preform"]
[null,null,null,null,null,null,null,null,null,null,null,null,null,null,"Armor","Wire - Snapped"]
[null,null,null,null,null,null,null,null,null,null,null,null,null,null,"Armor","Wire - Tension"]
[null,null,null,null,null,null,null,null,null,null,null,null,null,null,"Armor","Wire - Weld"]
[null,null,null,null,null,null,null,null,null,null,null,null,null,null,"Assembly","Cathodic Protection"]
[null,null,null,null,null,null,null,null,null,null,null,null,null,null,"Assembly","Component Interference/Clash"]
[null,null,null,null,null,null,null,null,null,null,null,null,null,null,"Assembly","Data Acquisition"]
[null,null,null,null,null,null,null,null,null,null,null,null,null,null,"Assembly","Dimension Out of Criteria"]
[null,null,null,null,null,null,null,null,null,null,null,null,null,null,"Assembly","Incorrect Assembly"]
[null,null,null,null,null,null,null,null,null,null,null,null,null,null,"Assembly","Incorrect Component"]
[null,null,null,null,null,null,null,null,null,null,null,null,null,null,"Assembly","Incorrect Torque"]
[null,null,null,null,null,null,null,null,null,null,null,null,null,null,"Assembly","Leaking Fluid"]
[null,null,null,null,null,null,null,null,null,null,null,null,null,null,"Assembly","Missing or Defective Component"]
[null,null,null,null,null,null,null,null,null,null,null,null,null,null,"Assembly","Physical Damage"]
[null,null,null,null,null,null,null,null,null,null,null,null,null,null,"Assembly","Tools Not Compliant"]
[null,null,null,null,null,null,null,null,null,null,null,null,null,null,"Assembly","Torque Marking Missing"]
[null,null,null,null,null,null,null,null,null,null,null,null,null,null,"Braiding","Braid Slack"]
[null,null,null,null,null,null,null,null,null,null,null,null,null,null,"Braiding","Braid Twisted"]
[null,null,null,null,null,null,null,null,null,null,null,null,null,null,"Braiding","Breakdown"]
[null,null,null,null,null,null,null,null,null,null,null,null,null,null,"Braiding","Burst Pressure"]
[null,null,null,null,null,null,null,null,null,null,null,null,null,null,"Braiding","Data Acquisition"]
[null,null,null,null,null,null,null,null,null,null,null,null,null,null,"Braiding","Documentation"]
[null,null,null,null,null,null,null,null,null,null,null,null,null,null,"Braiding","Hose Crushed"]
[null,null,null,null,null,null,null,null,null,null,null,null,null,null,"Braiding","Hose Strangled"]
[null,null,null,null,null,null,null,null,null,null,null,null,null,null,"Braiding","Length"]
[null,null,null,null,null,null,null,null,null,null,null,null,null,null,"Braiding","Liner damage"]
[null,null,null,null,null,null,null,null,null,null,null,null,null,null,"Braiding","Liner incorrect"]
[null,null,null,null,null,null,null,null,null,null,null,null,null,null,"Braiding","Liner stretched"]
[null,null,null,null,null,null,null,null,null,null,null,null,null,null,"Braiding","Loose Single Yarn End"]
[null,null,null,null,null,null,null,null,null,null,null,null,null,null,"Braiding","Material"]
[null,null,null,null,null,null,null,null,null,null,null,null,null,null,"Braiding","OD"]
[null,null,null,null,null,null,null,null,null,null,null,null,null,null,"Braiding","Other"]
[null,null,null,null,null,null,null,null,null,null,null,null,null,null,"Braiding","Pitch"]
[null,null,null,null,null,null,null,null,null,null,null,null,null,null,"Braiding","Poor Lay"]
[null,null,null,null,null,null,null,null,null,null,null,null,null,null,"Braiding","Snapped Yarn"]
[null,null,null,null,null,null,null,null,null,null,null,null,null,null,"Braiding","Surface Damage"]
[null,null,null,null,null,null,null,null,null,null,null,null,null,null,"Braiding","Tooling"]
[null,null,null,null,null,null,null,null,null,null,null,null,null,null,"Braiding","Yarn Tension"]
[null,null,null,null,null,null,null,null,null,null,null,null,null,null,"Carcass","Butt-Welding"]
[null,null,null,null,null,null,null,null,null,null,null,null,null,null,"Carcass","Butt-Welding Out of Criteria"]
[null,null,null,null,null,null,null,null,null,null,null,null,null,null,"Carcass","Coloration"]
[null,null,null,null,null,null,null,null,null,null,null,null,null,null,"Carcass","Control Not Performed"]
[null,null,null,null,null,null,null,null,null,null,null,null,null,null,"Carcass","Diameter Out of Criteria"]
[null,null,null,null,null,null,null,null,null,null,null,null,null,null,"Carcass","Elongation Out of Criteria"]
[null,null,null,null,null,null,null,null,null,null,null,null,null,null,"Carcass","Height Out of Criteria"]
[null,null,null,null,null,null,null,null,null,null,null,null,null,null,"Carcass","Nub Height Out of Criteria"]
[null,null,null,null,null,null,null,null,null,null,null,null,null,null,"Carcass","Oxidation"]
[null,null,null,null,null,null,null,null,null,null,null,null,null,null,"Carcass","Pitch Out of Criteria"]
[null,null,null,null,null,null,null,null,null,null,null,null,null,null,"Carcass","Profile Out of Criteria"]
[null,null,null,null,null,null,null,null,null,null,null,null,null,null,"Carcass","Raw Material Defect"]
[null,null,null,null,null,null,null,null,null,null,null,null,null,null,"Carcass","Surface Defect"]
[null,null,null,null,null,null,null,null,null,null,null,null,null,null,"Carcass","Swarfs"]
[null,null,null,null,null,null,null,null,null,null,null,null,null,null,"Carcass","Traceability"]
[null,null,null,null,null,null,null,null,null,null,null,null,null,null,"Carcass","Undulation"]
[null,null,null,null,null,null,null,null,null,null,null,null,null,null,"Carcass","Unlocking"]
[null,null,null,null,null,null,null,null,null,null,null,null,null,null,"Carcass","Weld Defect"]
[null,null,null,null,null,null,null,null,null,null,null,null,null,null,"Carcass","Weld Location"]
[null,null,null,null,null,null,null,null,null,null,null,null,null,null,"Documentation","Attributes Mismatch"]
[null,null,null,null,null,null,null,null,null,null,null,null,null,null,"Documentation","Attributes Missing"]
[null,null,null,null,null,null,null,null,null,null,null,null,null,null,"Documentation","Batch Management Not Serialization"]
[null,null,null,null,null,null,null,null,null,null,null,null,null,null,"Documentation","ECN Not Amended"]
[null,null,null,null,null,null,null,null,null,null,null,null,null,null,"Documentation","Engineering Notes"]
[null,null,null,null,null,null,null,null,null,null,null,null,null,null,"Documentation","Incorrect Documentation Used"]
[null,null,null,null,null,null,null,null,null,null,null,null,null,null,"Documentation","Incorrect User Documentation (Customer)"]
[null,null,null,null,null,null,null,null,null,null,null,null,null,null,"Documentation","Information Incorrect in Documentation"]
[null,null,null,null,null,null,null,null,null,null,null,null,null,null,"Documentation","Information Missing in Documentation"]
[null,null,null,null,null,null,null,null,null,null,null,null,null,null,"Documentation","Missing Documentation"]
[null,null,null,null,null,null,null,null,null,null,null,null,null,null,"Documentation","Missing User Documentation (Customer)"]
[null,null,null,null,null,null,null,null,null,null,null,null,null,null,"Documentation","Not Legible"]
[null,null,null,null,null,null,null,null,null,null,null,null,null,null,"Documentation","Not Maintained / Expired Documentation"]
[null,null,null,null,null,null,null,null,null,null,null,null,null,null,"Documentation","Open QN on Part/Equipment"]
[null,null,null,null,null,null,null,null,null,null,null,null,null,null,"Documentation","Other"]
[null,null,null,null,null,null,null,null,null,null,null,null,null,null,"Documentation","Part BOM"]
[null,null,null,null,null,null,null,null,null,null,null,null,null,null,"Documentation","Part Data (Trim / Temp / PSL level)"]
[null,null,null,null,null,null,null,null,null,null,null,null,null,null,"Documentation","Part Description / Drawing"]
[null,null,null,null,null,null,null,null,null,null,null,null,null,null,"Documentation","Procedure / Process Error"]
[null,null,null,null,null,null,null,null,null,null,null,null,null,null,"Documentation","Procedure/Specification Not Approved"]
[null,null,null,null,null,null,null,null,null,null,null,null,null,null,"Documentation","Purchase Order"]
[null,null,null,null,null,null,null,null,null,null,null,null,null,null,"Documentation","Quality Matrix"]
[null,null,null,null,null,null,null,null,null,null,null,null,null,null,"Documentation","Quantity Mismatch"]
[null,null,null,null,null,null,null,null,null,null,null,null,null,null,"Documentation","Routing"]
[null,null,null,null,null,null,null,null,null,null,null,null,null,null,"Documentation","Serialization Not Batch Management"]
[null,null,null,null,null,null,null,null,null,null,null,null,null,null,"Documentation","Service Docs (ICP / HFT / TDI / THI / PSM)"]
[null,null,null,null,null,null,null,null,null,null,null,null,null,null,"Documentation","Specification Type C, E, G, M, P, Q, W"]
[null,null,null,null,null,null,null,null,null,null,null,null,null,null,"Documentation","TechnipFMC Provided Item Discrepancy"]
[null,null,null,null,null,null,null,null,null,null,null,null,null,null,"Documentation","Uncontrolled Copy"]
[null,null,null,null,null,null,null,null,null,null,null,null,null,null,"Documentation","Use of Incorrect Documentation Revision"]
[null,null,null,null,null,null,null,null,null,null,null,null,null,null,"End Fitting","Araldite Out of Criteria"]
[null,null,null,null,null,null,null,null,null,null,null,null,null,null,"End Fitting","Assembly Incompatibility"]
[null,null,null,null,null,null,null,null,null,null,null,null,null,null,"End Fitting","CND/NDT"]
[null,null,null,null,null,null,null,null,null,null,null,null,null,null,"End Fitting","Coating Defect"]
[null,null,null,null,null,null,null,null,null,null,null,null,null,null,"End Fitting","Component Size Out of Criteria"]
[null,null,null,null,null,null,null,null,null,null,null,null,null,null,"End Fitting","Contract Review"]
[null,null,null,null,null,null,null,null,null,null,null,null,null,null,"End Fitting","Control Not Performed"]
[null,null,null,null,null,null,null,null,null,null,null,null,null,null,"End Fitting","Crimping Screw Out of Criteria"]
[null,null,null,null,null,null,null,null,null,null,null,null,null,null,"End Fitting","Criteria Not Conform to Specification"]
[null,null,null,null,null,null,null,null,null,null,null,null,null,null,"End Fitting","Cut Out of Criteria"]
[null,null,null,null,null,null,null,null,null,null,null,null,null,null,"End Fitting","Damaged End-Fitting (except Nikaflex)"]
[null,null,null,null,null,null,null,null,null,null,null,null,null,null,"End Fitting","Defect on Component"]
[null,null,null,null,null,null,null,null,null,null,null,null,null,null,"End Fitting","Equipment Damage"]
[null,null,null,null,null,null,null,null,null,null,null,null,null,null,"End Fitting","Equipment Problem"]
[null,null,null,null,null,null,null,null,null,null,null,null,null,null,"End Fitting","Gap Out of Criteria"]
[null,null,null,null,null,null,null,null,null,null,null,null,null,null,"End Fitting","Gas Relief Tube"]
[null,null,null,null,null,null,null,null,null,null,null,null,null,null,"End Fitting","Heat Treatment"]
[null,null,null,null,null,null,null,null,null,null,null,null,null,null,"End Fitting","Incorrect Documentation"]
[null,null,null,null,null,null,null,null,null,null,null,null,null,null,"End Fitting","Machining Out of Criteria"]
[null,null,null,null,null,null,null,null,null,null,null,null,null,null,"End Fitting","Nikaflex Damage"]
[null,null,null,null,null,null,null,null,null,null,null,null,null,null,"End Fitting","Notification Incident"]
[null,null,null,null,null,null,null,null,null,null,null,null,null,null,"End Fitting","Oxidation"]
[null,null,null,null,null,null,null,null,null,null,null,null,null,null,"End Fitting","Packaging Defect"]
[null,null,null,null,null,null,null,null,null,null,null,null,null,null,"End Fitting","Plug-screw Blocked"]
[null,null,null,null,null,null,null,null,null,null,null,null,null,null,"End Fitting","Process"]
[null,null,null,null,null,null,null,null,null,null,null,null,null,null,"End Fitting","Raw Material Out of Criteria"]
[null,null,null,null,null,null,null,null,null,null,null,null,null,null,"End Fitting","Size Out of Criteria"]
[null,null,null,null,null,null,null,null,null,null,null,null,null,null,"End Fitting","Surface Defect"]
[null,null,null,null,null,null,null,null,null,null,null,null,null,null,"End Fitting","Test Results Out of Criteria"]
[null,null,null,null,null,null,null,null,null,null,null,null,null,null,"End Fitting","Traceability"]
[null,null,null,null,null,null,null,null,null,null,null,null,null,null,"End Fitting","Visual Defect"]
[null,null,null,null,null,null,null,null,null,null,null,null,null,null,"End Fitting","Weld Defect"]
[null,null,null,null,null,null,null,null,null,null,null,null,null,null,"Equipment","Availability"]
[null,null,null,null,null,null,null,null,null,null,null,null,null,null,"Equipment","Coating / Insulation / Paint Defect"]
[null,null,null,null,null,null,null,null,null,null,null,null,null,null,"Equipment","Collapse"]
[null,null,null,null,null,null,null,null,null,null,null,null,null,null,"Equipment","Corrosion"]
[null,null,null,null,null,null,null,null,null,null,null,null,null,null,"Equipment","Damaged"]
[null,null,null,null,null,null,null,null,null,null,null,null,null,null,"Equipment","Dimension Out of Criteria"]
[null,null,null,null,null,null,null,null,null,null,null,null,null,null,"Equipment","Marking Error"]
[null,null,null,null,null,null,null,null,null,null,null,null,null,null,"Equipment","Missing Certificates"]
[null,null,null,null,null,null,null,null,null,null,null,null,null,null,"Equipment","Missing Part / Quantity Error"]
[null,null,null,null,null,null,null,null,null,null,null,null,null,null,"Equipment","Not According to Design / Raw Material Defective"]
[null,null,null,null,null,null,null,null,null,null,null,null,null,null,"Equipment","Not Providing Designed Function"]
[null,null,null,null,null,null,null,null,null,null,null,null,null,null,"Equipment","Other"]
[null,null,null,null,null,null,null,null,null,null,null,null,null,null,"Equipment","Shelf Life Expired"]
[null,null,null,null,null,null,null,null,null,null,null,null,null,null,"Equipment","Surface Defect"]
[null,null,null,null,null,null,null,null,null,null,null,null,null,null,"Extrusion","Blisters"]
[null,null,null,null,null,null,null,null,null,null,null,null,null,null,"Extrusion","Breakaways"]
[null,null,null,null,null,null,null,null,null,null,null,null,null,null,"Extrusion","Breakdown"]
[null,null,null,null,null,null,null,null,null,null,null,null,null,null,"Extrusion","Concentricity"]
[null,null,null,null,null,null,null,null,null,null,null,null,null,null,"Extrusion","Contamination"]
[null,null,null,null,null,null,null,null,null,null,null,null,null,null,"Extrusion","Crease"]
[null,null,null,null,null,null,null,null,null,null,null,null,null,null,"Extrusion","Damage"]
[null,null,null,null,null,null,null,null,null,null,null,null,null,null,"Extrusion","Data Acquisition"]
[null,null,null,null,null,null,null,null,null,null,null,null,null,null,"Extrusion","Documentation"]
[null,null,null,null,null,null,null,null,null,null,null,null,null,null,"Extrusion","Drag Mark"]
[null,null,null,null,null,null,null,null,null,null,null,null,null,null,"Extrusion","Environment"]
[null,null,null,null,null,null,null,null,null,null,null,null,null,null,"Extrusion","Length"]
[null,null,null,null,null,null,null,null,null,null,null,null,null,null,"Extrusion","Material"]
[null,null,null,null,null,null,null,null,null,null,null,null,null,null,"Extrusion","OD"]
[null,null,null,null,null,null,null,null,null,null,null,null,null,null,"Extrusion","Other"]
[null,null,null,null,null,null,null,null,null,null,null,null,null,null,"Extrusion","Ovality"]
[null,null,null,null,null,null,null,null,null,null,null,null,null,null,"Extrusion","Perforations"]
[null,null,null,null,null,null,null,null,null,null,null,null,null,null,"Extrusion","Poor Lay"]
[null,null,null,null,null,null,null,null,null,null,null,null,null,null,"Extrusion","Print"]
[null,null,null,null,null,null,null,null,null,null,null,null,null,null,"Extrusion","Rippling"]
[null,null,null,null,null,null,null,null,null,null,null,null,null,null,"Extrusion","Scoring"]
[null,null,null,null,null,null,null,null,null,null,null,null,null,null,"Extrusion","Surges"]
[null,null,null,null,null,null,null,null,null,null,null,null,null,null,"Extrusion","Tooling"]
[null,null,null,null,null,null,null,null,null,null,null,null,null,null,"Extrusion","Wall Thickness"]
[null,null,null,null,null,null,null,null,null,null,null,null,null,null,"Extrusion","Watermarks"]
[null,null,null,null,null,null,null,null,null,null,null,null,null,null,"Flexible Installation (Pipelay)","Assembly Failure"]
[null,null,null,null,null,null,null,null,null,null,null,null,null,null,"Flexible Installation (Pipelay)","Corrosion"]
[null,null,null,null,null,null,null,null,null,null,null,null,null,null,"Flexible Installation (Pipelay)","Design Failure"]
[null,null,null,null,null,null,null,null,null,null,null,null,null,null,"Flexible Installation (Pipelay)","Electrical Failure"]
[null,null,null,null,null,null,null,null,null,null,null,null,null,null,"Flexible Installation (Pipelay)","Electronic Failure"]
[null,null,null,null,null,null,null,null,null,null,null,null,null,null,"Flexible Installation (Pipelay)","Installation Failure"]
[null,null,null,null,null,null,null,null,null,null,null,null,null,null,"Flexible Installation (Pipelay)","Lubrication Failure"]
[null,null,null,null,null,null,null,null,null,null,null,null,null,null,"Flexible Installation (Pipelay)","Maintenance Failure"]
[null,null,null,null,null,null,null,null,null,null,null,null,null,null,"Flexible Installation (Pipelay)","Manufacturing Defect"]
[null,null,null,null,null,null,null,null,null,null,null,null,null,null,"Flexible Installation (Pipelay)","Moisture"]
[null,null,null,null,null,null,null,null,null,null,null,null,null,null,"Flexible Installation (Pipelay)","Operational Communication Failure"]
[null,null,null,null,null,null,null,null,null,null,null,null,null,null,"Flexible Installation (Pipelay)","Overload"]
[null,null,null,null,null,null,null,null,null,null,null,null,null,null,"Flexible Installation (Pipelay)","Procedure Failure"]
[null,null,null,null,null,null,null,null,null,null,null,null,null,null,"Flexible Installation (Pipelay)","Software Failure"]
[null,null,null,null,null,null,null,null,null,null,null,null,null,null,"Flexible Installation (Pipelay)","Vibration"]
[null,null,null,null,null,null,null,null,null,null,null,null,null,null,"Foam","Control Not Performed"]
[null,null,null,null,null,null,null,null,null,null,null,null,null,null,"Foam","Foam Broken"]
[null,null,null,null,null,null,null,null,null,null,null,null,null,null,"Foam","Foam Defect"]
[null,null,null,null,null,null,null,null,null,null,null,null,null,null,"Foam","Pitch Out of Criteria"]
[null,null,null,null,null,null,null,null,null,null,null,null,null,null,"Foam","Traceability"]
[null,null,null,null,null,null,null,null,null,null,null,null,null,null,"General","Calibration Out of Criteria"]
[null,null,null,null,null,null,null,null,null,null,null,null,null,null,"General","Computer Bug"]
[null,null,null,null,null,null,null,null,null,null,null,null,null,null,"General","Deadline Not Respected"]
[null,null,null,null,null,null,null,null,null,null,null,null,null,null,"General","Engineering Change Request"]
[null,null,null,null,null,null,null,null,null,null,null,null,null,null,"General","Lack of Notification"]
[null,null,null,null,null,null,null,null,null,null,null,null,null,null,"General","Manufacturing Equipment Defective"]
[null,null,null,null,null,null,null,null,null,null,null,null,null,null,"General","Marking Incorrect"]
[null,null,null,null,null,null,null,null,null,null,null,null,null,null,"General","Marking Missing"]
[null,null,null,null,null,null,null,null,null,null,null,null,null,null,"General","Material Conversion Req (stock type conversion)"]
[null,null,null,null,null,null,null,null,null,null,null,null,null,null,"General","Material Substitution Req (Material conversion)"]
[null,null,null,null,null,null,null,null,null,null,null,null,null,null,"General","Missed Client Intervention"]
[null,null,null,null,null,null,null,null,null,null,null,null,null,null,"General","No Non-Conformance"]
[null,null,null,null,null,null,null,null,null,null,null,null,null,null,"General","Process Substitution Request"]
[null,null,null,null,null,null,null,null,null,null,null,null,null,null,"General","Project Specific Items not Included"]
[null,null,null,null,null,null,null,null,null,null,null,null,null,null,"General","Tooling Failure"]
[null,null,null,null,null,null,null,null,null,null,null,null,null,null,"General","Traceability Level Incorrect"]
[null,null,null,null,null,null,null,null,null,null,null,null,null,null,"Helical Assembly","Bundle - Contamination"]
[null,null,null,null,null,null,null,null,null,null,null,null,null,null,"Helical Assembly","Bundle - Crushed"]
[null,null,null,null,null,null,null,null,null,null,null,null,null,null,"Helical Assembly","Bundle - Global Abrasion"]
[null,null,null,null,null,null,null,null,null,null,null,null,null,null,"Helical Assembly","Bundle - Global Impact Damage"]
[null,null,null,null,null,null,null,null,null,null,null,null,null,null,"Helical Assembly","Bundle - Length"]
[null,null,null,null,null,null,null,null,null,null,null,null,null,null,"Helical Assembly","Bundle - Not as per UDS"]
[null,null,null,null,null,null,null,null,null,null,null,null,null,null,"Helical Assembly","Bundle - OD out of Spec"]
[null,null,null,null,null,null,null,null,null,null,null,null,null,null,"Helical Assembly","Bundle - Orientation Incorrect"]
[null,null,null,null,null,null,null,null,null,null,null,null,null,null,"Helical Assembly","Bundle - Ovality"]
[null,null,null,null,null,null,null,null,null,null,null,null,null,null,"Helical Assembly","Bundle - Pitch"]
[null,null,null,null,null,null,null,null,null,null,null,null,null,null,"Helical Assembly","Bundle - Poor Lay on Takeup"]
[null,null,null,null,null,null,null,null,null,null,null,null,null,null,"Helical Assembly","Bundle - Snapped"]
[null,null,null,null,null,null,null,null,null,null,null,null,null,null,"Helical Assembly","Bundle - Tension"]
[null,null,null,null,null,null,null,null,null,null,null,null,null,null,"Helical Assembly","Bundle - UMS length not achieved"]
[null,null,null,null,null,null,null,null,null,null,null,null,null,null,"Helical Assembly","Data Acquisition"]
[null,null,null,null,null,null,null,null,null,null,null,null,null,null,"Helical Assembly","Data Acquisition - Loss of critical data"]
[null,null,null,null,null,null,null,null,null,null,null,null,null,null,"Helical Assembly","Documentation"]
[null,null,null,null,null,null,null,null,null,null,null,null,null,null,"Helical Assembly","Electrical Cable - Armor Damage"]
[null,null,null,null,null,null,null,null,null,null,null,null,null,null,"Helical Assembly","Electrical Cable - Contamination"]
[null,null,null,null,null,null,null,null,null,null,null,null,null,null,"Helical Assembly","Electrical Cable - Incorrect Reel Loaded"]
[null,null,null,null,null,null,null,null,null,null,null,null,null,null,"Helical Assembly","Electrical Cable - Internal Damage"]
[null,null,null,null,null,null,null,null,null,null,null,null,null,null,"Helical Assembly","Electrical Cable - Missing from bundle"]
[null,null,null,null,null,null,null,null,null,null,null,null,null,null,"Helical Assembly","Electrical Cable - Overtension"]
[null,null,null,null,null,null,null,null,null,null,null,null,null,null,"Helical Assembly","Electrical Cable - Poor lay on reel"]
[null,null,null,null,null,null,null,null,null,null,null,null,null,null,"Helical Assembly","Electrical Cable - Sheath Damage"]
[null,null,null,null,null,null,null,null,null,null,null,null,null,null,"Helical Assembly","Electrical Cable - Snapped"]
[null,null,null,null,null,null,null,null,null,null,null,null,null,null,"Helical Assembly","Electrical Cables - Length"]
[null,null,null,null,null,null,null,null,null,null,null,null,null,null,"Helical Assembly","Electrical Cables - Loading"]
[null,null,null,null,null,null,null,null,null,null,null,null,null,null,"Helical Assembly","Electrical Cables - Missing Documentation (C of C, etc.)"]
[null,null,null,null,null,null,null,null,null,null,null,null,null,null,"Helical Assembly","Electrical Cables - OD"]
[null,null,null,null,null,null,null,null,null,null,null,null,null,null,"Helical Assembly","Electrical Cables - Pitch"]
[null,null,null,null,null,null,null,null,null,null,null,null,null,null,"Helical Assembly","Electrical Cables - Poor Lay"]
[null,null,null,null,null,null,null,null,null,null,null,null,null,null,"Helical Assembly","Electrical Cables - Scratched"]
[null,null,null,null,null,null,null,null,null,null,null,null,null,null,"Helical Assembly","Electrical Cables - Tear in Sheathing"]
[null,null,null,null,null,null,null,null,null,null,null,null,null,null,"Helical Assembly","Electrical Cables - Weld"]
[null,null,null,null,null,null,null,null,null,null,null,null,null,null,"Helical Assembly","Electrical Cables - Wrong/Missing"]
[null,null,null,null,null,null,null,null,null,null,null,null,null,null,"Helical Assembly","Electrical Failure"]
[null,null,null,null,null,null,null,null,null,null,null,null,null,null,"Helical Assembly","Fiber Optics - Armor Damage"]
[null,null,null,null,null,null,null,null,null,null,null,null,null,null,"Helical Assembly","Fiber Optics - Contamination"]
[null,null,null,null,null,null,null,null,null,null,null,null,null,null,"Helical Assembly","Fiber Optics - Incorrect Reel Loaded"]
[null,null,null,null,null,null,null,null,null,null,null,null,null,null,"Helical Assembly","Fiber Optics - Internal Damage"]
[null,null,null,null,null,null,null,null,null,null,null,null,null,null,"Helical Assembly","Fiber Optics - Length"]
[null,null,null,null,null,null,null,null,null,null,null,null,null,null,"Helical Assembly","Fiber Optics - Loading"]
[null,null,null,null,null,null,null,null,null,null,null,null,null,null,"Helical Assembly","Fiber Optics - Missing Documentation (C of C, etc.)"]
[null,null,null,null,null,null,null,null,null,null,null,null,null,null,"Helical Assembly","Fiber Optics - Missing from bundle"]
[null,null,null,null,null,null,null,null,null,null,null,null,null,null,"Helical Assembly","Fiber Optics - OD"]
[null,null,null,null,null,null,null,null,null,null,null,null,null,null,"Helical Assembly","Fiber Optics - Overtension"]
[null,null,null,null,null,null,null,null,null,null,null,null,null,null,"Helical Assembly","Fiber Optics - Pitch"]
[null,null,null,null,null,null,null,null,null,null,null,null,null,null,"Helical Assembly","Fiber Optics - Poor Lay"]
[null,null,null,null,null,null,null,null,null,null,null,null,null,null,"Helical Assembly","Fiber Optics - Poor Lay on Reel"]
[null,null,null,null,null,null,null,null,null,null,null,null,null,null,"Helical Assembly","Fiber Optics - Scratched"]
[null,null,null,null,null,null,null,null,null,null,null,null,null,null,"Helical Assembly","Fiber Optics - Sheath Damage"]
[null,null,null,null,null,null,null,null,null,null,null,null,null,null,"Helical Assembly","Fiber Optics - Snapped"]
[null,null,null,null,null,null,null,null,null,null,null,null,null,null,"Helical Assembly","Fiber Optics - Tear in Sheathing"]
[null,null,null,null,null,null,null,null,null,null,null,null,null,null,"Helical Assembly","Fiber Optics - Weld"]
[null,null,null,null,null,null,null,null,null,null,null,null,null,null,"Helical Assembly","Fiber Optics - Wrong/Missing"]
[null,null,null,null,null,null,null,null,null,null,null,null,null,null,"Helical Assembly","Filler - Abrasion"]
[null,null,null,null,null,null,null,null,null,null,null,null,null,null,"Helical Assembly","Filler - Color incorrect"]
[null,null,null,null,null,null,null,null,null,null,null,null,null,null,"Helical Assembly","Filler - Contamination"]
[null,null,null,null,null,null,null,null,null,null,null,null,null,null,"Helical Assembly","Filler - Deformed"]
[null,null,null,null,null,null,null,null,null,null,null,null,null,null,"Helical Assembly","Filler - Incorrect reel loaded"]
[null,null,null,null,null,null,null,null,null,null,null,null,null,null,"Helical Assembly","Filler - Length"]
[null,null,null,null,null,null,null,null,null,null,null,null,null,null,"Helical Assembly","Filler - Loading"]
[null,null,null,null,null,null,null,null,null,null,null,null,null,null,"Helical Assembly","Filler - Missing from Bundle/Shortage"]
[null,null,null,null,null,null,null,null,null,null,null,null,null,null,"Helical Assembly","Filler - Non conforming supplier joint"]
[null,null,null,null,null,null,null,null,null,null,null,null,null,null,"Helical Assembly","Filler - Orientation Incorrect"]
[null,null,null,null,null,null,null,null,null,null,null,null,null,null,"Helical Assembly","Filler - Poor lay on reel"]
[null,null,null,null,null,null,null,null,null,null,null,null,null,null,"Helical Assembly","Filler - Snapped"]
[null,null,null,null,null,null,null,null,null,null,null,null,null,null,"Helical Assembly","Filler - Tension"]
[null,null,null,null,null,null,null,null,null,null,null,null,null,null,"Helical Assembly","Filler - Wrong/Missing"]
[null,null,null,null,null,null,null,null,null,null,null,null,null,null,"Helical Assembly","Hose - Braid Damage"]
[null,null,null,null,null,null,null,null,null,null,null,null,null,null,"Helical Assembly","Hose - Contamination"]
[null,null,null,null,null,null,null,null,null,null,null,null,null,null,"Helical Assembly","Hose - Incorrect Reel Loaded"]
[null,null,null,null,null,null,null,null,null,null,null,null,null,null,"Helical Assembly","Hose - Missing From Bundle"]
[null,null,null,null,null,null,null,null,null,null,null,null,null,null,"Helical Assembly","Hose - Overtension"]
[null,null,null,null,null,null,null,null,null,null,null,null,null,null,"Helical Assembly","Hose - Poor Lay on Reel"]
[null,null,null,null,null,null,null,null,null,null,null,null,null,null,"Helical Assembly","Hose - Sheath Damage"]
[null,null,null,null,null,null,null,null,null,null,null,null,null,null,"Helical Assembly","Hose - Snapped"]
[null,null,null,null,null,null,null,null,null,null,null,null,null,null,"Helical Assembly","Improper Setup"]
[null,null,null,null,null,null,null,null,null,null,null,null,null,null,"Helical Assembly","Loading - Incorrect Reel Dimensions"]
[null,null,null,null,null,null,null,null,null,null,null,null,null,null,"Helical Assembly","Machine / Equipment Capability"]
[null,null,null,null,null,null,null,null,null,null,null,null,null,null,"Helical Assembly","Machine / Equipment Failure"]
[null,null,null,null,null,null,null,null,null,null,null,null,null,null,"Helical Assembly","Material"]
[null,null,null,null,null,null,null,null,null,null,null,null,null,null,"Helical Assembly","Mechanical Failure"]
[null,null,null,null,null,null,null,null,null,null,null,null,null,null,"Helical Assembly","Other"]
[null,null,null,null,null,null,null,null,null,null,null,null,null,null,"Helical Assembly","PC Strand - Contamination"]
[null,null,null,null,null,null,null,null,null,null,null,null,null,null,"Helical Assembly","PC Strand - Incorrect reel loaded"]
[null,null,null,null,null,null,null,null,null,null,null,null,null,null,"Helical Assembly","PC Strand - Missing from bundle"]
[null,null,null,null,null,null,null,null,null,null,null,null,null,null,"Helical Assembly","PC Strand - Overtension"]
[null,null,null,null,null,null,null,null,null,null,null,null,null,null,"Helical Assembly","PC Strand - Poor lay on reel"]
[null,null,null,null,null,null,null,null,null,null,null,null,null,null,"Helical Assembly","PC Strand - Sheath Damage"]
[null,null,null,null,null,null,null,null,null,null,null,null,null,null,"Helical Assembly","PC Strand - Snapped"]
[null,null,null,null,null,null,null,null,null,null,null,null,null,null,"Helical Assembly","PC Strand - Strand Damage"]
[null,null,null,null,null,null,null,null,null,null,null,null,null,null,"Helical Assembly","PC Strand (Steel Strand) - Contamination"]
[null,null,null,null,null,null,null,null,null,null,null,null,null,null,"Helical Assembly","PC Strand (Steel Strand) - Damage"]
[null,null,null,null,null,null,null,null,null,null,null,null,null,null,"Helical Assembly","PC Strand (Steel Strand) - Length"]
[null,null,null,null,null,null,null,null,null,null,null,null,null,null,"Helical Assembly","PC Strand (Steel Strand) - Loading"]
[null,null,null,null,null,null,null,null,null,null,null,null,null,null,"Helical Assembly","PC Strand (Steel Strand) - Missing Documentation"]
[null,null,null,null,null,null,null,null,null,null,null,null,null,null,"Helical Assembly","PC Strand (Steel Strand) - OD"]
[null,null,null,null,null,null,null,null,null,null,null,null,null,null,"Helical Assembly","PC Strand (Steel Strand) - Pitch"]
[null,null,null,null,null,null,null,null,null,null,null,null,null,null,"Helical Assembly","PC Strand (Steel Strand) - Poor Lay"]
[null,null,null,null,null,null,null,null,null,null,null,null,null,null,"Helical Assembly","PC Strand (Steel Strand) - Scratched"]
[null,null,null,null,null,null,null,null,null,null,null,null,null,null,"Helical Assembly","PC Strand (Steel Strand) - Tear in Sheathing"]
[null,null,null,null,null,null,null,null,null,null,null,null,null,null,"Helical Assembly","PC Strand (Steel Strand) - Weld"]
[null,null,null,null,null,null,null,null,null,null,null,null,null,null,"Helical Assembly","PC Strand (Steel Strand) - Wrong/Missing"]
[null,null,null,null,null,null,null,null,null,null,null,null,null,null,"Helical Assembly","Poor Lay"]
[null,null,null,null,null,null,null,null,null,null,null,null,null,null,"Helical Assembly","Steel Tube - Contamination"]
[null,null,null,null,null,null,null,null,null,null,null,null,null,null,"Helical Assembly","Steel Tube - Damage"]
[null,null,null,null,null,null,null,null,null,null,null,null,null,null,"Helical Assembly","Steel Tube - Incorrect Reel Loaded"]
[null,null,null,null,null,null,null,null,null,null,null,null,null,null,"Helical Assembly","Steel Tube - Length"]
[null,null,null,null,null,null,null,null,null,null,null,null,null,null,"Helical Assembly","Steel Tube - Loading"]
[null,null,null,null,null,null,null,null,null,null,null,null,null,null,"Helical Assembly","Steel Tube - Loss of Tension on Reel"]
[null,null,null,null,null,null,null,null,null,null,null,null,null,null,"Helical Assembly","Steel Tube - Missing Documentation (C of C, etc.)"]
[null,null,null,null,null,null,null,null,null,null,null,null,null,null,"Helical Assembly","Steel Tube - Missing from Bundle"]
[null,null,null,null,null,null,null,null,null,null,null,null,null,null,"Helical Assembly","Steel Tube - OD"]
[null,null,null,null,null,null,null,null,null,null,null,null,null,null,"Helical Assembly","Steel Tube - Ovality"]
[null,null,null,null,null,null,null,null,null,null,null,null,null,null,"Helical Assembly","Steel Tube - Overtension"]
[null,null,null,null,null,null,null,null,null,null,null,null,null,null,"Helical Assembly","Steel Tube - Poor Lay"]
[null,null,null,null,null,null,null,null,null,null,null,null,null,null,"Helical Assembly","Steel Tube - Poor Lay on Reel"]
[null,null,null,null,null,null,null,null,null,null,null,null,null,null,"Helical Assembly","Steel Tube - Scratched"]
[null,null,null,null,null,null,null,null,null,null,null,null,null,null,"Helical Assembly","Steel Tube - Sheath Damage"]
[null,null,null,null,null,null,null,null,null,null,null,null,null,null,"Helical Assembly","Steel Tube - Snapped"]
[null,null,null,null,null,null,null,null,null,null,null,null,null,null,"Helical Assembly","Steel Tube - Surface Damage"]
[null,null,null,null,null,null,null,null,null,null,null,null,null,null,"Helical Assembly","Steel Tube - Welding Issue"]
[null,null,null,null,null,null,null,null,null,null,null,null,null,null,"Helical Assembly","Steel Tube - Wrong/Missing"]
[null,null,null,null,null,null,null,null,null,null,null,null,null,null,"Helical Assembly","Sub Bundle - Contamination"]
[null,null,null,null,null,null,null,null,null,null,null,null,null,null,"Helical Assembly","Sub Bundle - Crushed"]
[null,null,null,null,null,null,null,null,null,null,null,null,null,null,"Helical Assembly","Sub Bundle - Cycle Out of Spec"]
[null,null,null,null,null,null,null,null,null,null,null,null,null,null,"Helical Assembly","Sub Bundle - Damage"]
[null,null,null,null,null,null,null,null,null,null,null,null,null,null,"Helical Assembly","Sub Bundle - Incorrect Sub Bundle"]
[null,null,null,null,null,null,null,null,null,null,null,null,null,null,"Helical Assembly","Sub Bundle - Length"]
[null,null,null,null,null,null,null,null,null,null,null,null,null,null,"Helical Assembly","Sub Bundle - Missing from Bundle"]
[null,null,null,null,null,null,null,null,null,null,null,null,null,null,"Helical Assembly","Sub Bundle - OD Out of Spec"]
[null,null,null,null,null,null,null,null,null,null,null,null,null,null,"Helical Assembly","Sub Bundle - Orientation Incorrect"]
[null,null,null,null,null,null,null,null,null,null,null,null,null,null,"Helical Assembly","Sub Bundle - Ovality"]
[null,null,null,null,null,null,null,null,null,null,null,null,null,null,"Helical Assembly","Sub Bundle - Pitch Out of Spec"]
[null,null,null,null,null,null,null,null,null,null,null,null,null,null,"Helical Assembly","Sub Bundle - Poor Lay on Letoff"]
[null,null,null,null,null,null,null,null,null,null,null,null,null,null,"Helical Assembly","Sub Bundle - Snapped"]
[null,null,null,null,null,null,null,null,null,null,null,null,null,null,"Helical Assembly","Sub Bundle - Tension"]
[null,null,null,null,null,null,null,null,null,null,null,null,null,null,"Helical Assembly","Sub Bundle - UMS Length Not Achieved"]
[null,null,null,null,null,null,null,null,null,null,null,null,null,null,"Helical Assembly","Tooling"]
[null,null,null,null,null,null,null,null,null,null,null,null,null,null,"Loadout","Breakdown"]
[null,null,null,null,null,null,null,null,null,null,null,null,null,null,"Loadout","Damage"]
[null,null,null,null,null,null,null,null,null,null,null,null,null,null,"Loadout","Data Acquisition"]
[null,null,null,null,null,null,null,null,null,null,null,null,null,null,"Loadout","Documentation"]
[null,null,null,null,null,null,null,null,null,null,null,null,null,null,"Loadout","Environment"]
[null,null,null,null,null,null,null,null,null,null,null,null,null,null,"Loadout","Material"]
[null,null,null,null,null,null,null,null,null,null,null,null,null,null,"Loadout","Other"]
[null,null,null,null,null,null,null,null,null,null,null,null,null,null,"Loadout","Poor Lay"]
[null,null,null,null,null,null,null,null,null,null,null,null,null,null,"Loadout","Speed"]
[null,null,null,null,null,null,null,null,null,null,null,null,null,null,"Loadout","Tension"]
[null,null,null,null,null,null,null,null,null,null,null,null,null,null,"Loadout","Tooling"]
[null,null,null,null,null,null,null,null,null,null,null,null,null,null,"Machining","Burning of Material"]
[null,null,null,null,null,null,null,null,null,null,null,null,null,null,"Machining","Burr/Chip Control Insufficient"]
[null,null,null,null,null,null,null,null,null,null,null,null,null,null,"Machining","Chatter"]
[null,null,null,null,null,null,null,null,null,null,null,null,null,null,"Machining","Clamping Improper"]
[null,null,null,null,null,null,null,null,null,null,null,null,null,null,"Machining","Dimension Out of Criteria"]
[null,null,null,null,null,null,null,null,null,null,null,null,null,null,"Machining","Handling Damage"]
[null,null,null,null,null,null,null,null,null,null,null,null,null,null,"Machining","Incorrect Program"]
[null,null,null,null,null,null,null,null,null,null,null,null,null,null,"Machining","Insert Selection Incorrect"]
[null,null,null,null,null,null,null,null,null,null,null,null,null,null,"Machining","Machine-Equipment Defect"]
[null,null,null,null,null,null,null,null,null,null,null,null,null,null,"Machining","Material"]
[null,null,null,null,null,null,null,null,null,null,null,null,null,null,"Machining","Poor Surface Finish"]
[null,null,null,null,null,null,null,null,null,null,null,null,null,null,"Machining","Tool Alignment"]
[null,null,null,null,null,null,null,null,null,null,null,null,null,null,"Machining","Tool Offset Incorrect"]
[null,null,null,null,null,null,null,null,null,null,null,null,null,null,"Machining","Tools Not Compliant"]
[null,null,null,null,null,null,null,null,null,null,null,null,null,null,"Material","Defective Raw"]
[null,null,null,null,null,null,null,null,null,null,null,null,null,null,"Material","Wrong type for Job"]
[null,null,null,null,null,null,null,null,null,null,null,null,null,null,"Operational","Availability, Personnel"]
[null,null,null,null,null,null,null,null,null,null,null,null,null,null,"Operational","Documents not Issued"]
[null,null,null,null,null,null,null,null,null,null,null,null,null,null,"Operational","Late Delivery"]
[null,null,null,null,null,null,null,null,null,null,null,null,null,null,"Operational","Operator Qualification not Compliant"]
[null,null,null,null,null,null,null,null,null,null,null,null,null,null,"Operational","Procedure Not Followed"]
[null,null,null,null,null,null,null,null,null,null,null,null,null,null,"Operational","Quality Performance"]
[null,null,null,null,null,null,null,null,null,null,null,null,null,null,"Packaging","Labeling"]
[null,null,null,null,null,null,null,null,null,null,null,null,null,null,"Packaging","Wrong type for Job"]
[null,null,null,null,null,null,null,null,null,null,null,null,null,null,"Packing","Assembly Incompatibility"]
[null,null,null,null,null,null,null,null,null,null,null,null,null,null,"Packing","Breakdown"]
[null,null,null,null,null,null,null,null,null,null,null,null,null,null,"Packing","Control Not Performed"]
[null,null,null,null,null,null,null,null,null,null,null,null,null,null,"Packing","Damage"]
[null,null,null,null,null,null,null,null,null,null,null,null,null,null,"Packing","Damaged Packing or Reel"]
[null,null,null,null,null,null,null,null,null,null,null,null,null,null,"Packing","Data Acquisition"]
[null,null,null,null,null,null,null,null,null,null,null,null,null,null,"Packing","Documentation"]
[null,null,null,null,null,null,null,null,null,null,null,null,null,null,"Packing","Environment"]
[null,null,null,null,null,null,null,null,null,null,null,null,null,null,"Packing","Line Length Out of Criteria"]
[null,null,null,null,null,null,null,null,null,null,null,null,null,null,"Packing","Marking Out of Criteria"]
[null,null,null,null,null,null,null,null,null,null,null,null,null,null,"Packing","Material"]
[null,null,null,null,null,null,null,null,null,null,null,null,null,null,"Packing","Other"]
[null,null,null,null,null,null,null,null,null,null,null,null,null,null,"Packing","Oxidation"]
[null,null,null,null,null,null,null,null,null,null,null,null,null,null,"Packing","Poor Lay"]
[null,null,null,null,null,null,null,null,null,null,null,null,null,null,"Packing","Rigging Equipment Out of Criteria"]
[null,null,null,null,null,null,null,null,null,null,null,null,null,null,"Packing","Speed"]
[null,null,null,null,null,null,null,null,null,null,null,null,null,null,"Packing","Tension"]
[null,null,null,null,null,null,null,null,null,null,null,null,null,null,"Packing","Thread Torque Out of Ceria"]
[null,null,null,null,null,null,null,null,null,null,null,null,null,null,"Packing","Tooling"]
[null,null,null,null,null,null,null,null,null,null,null,null,null,null,"Packing","Traceability"]
[null,null,null,null,null,null,null,null,null,null,null,null,null,null,"Painting / Coating / Insulation","Contamination"]
[null,null,null,null,null,null,null,null,null,null,null,null,null,null,"Painting / Coating / Insulation","Defective/Damaged"]
[null,null,null,null,null,null,null,null,null,null,null,null,null,null,"Painting / Coating / Insulation","Delamination"]
[null,null,null,null,null,null,null,null,null,null,null,null,null,null,"Painting / Coating / Insulation","Holiday"]
[null,null,null,null,null,null,null,null,null,null,null,null,null,null,"Painting / Coating / Insulation","Incorrect Area or Not Applied"]
[null,null,null,null,null,null,null,null,null,null,null,null,null,null,"Painting / Coating / Insulation","Incorrect Thickness"]
[null,null,null,null,null,null,null,null,null,null,null,null,null,null,"Painting / Coating / Insulation","Incorrect Type"]
[null,null,null,null,null,null,null,null,null,null,null,null,null,null,"Painting / Coating / Insulation","Missing Component"]
[null,null,null,null,null,null,null,null,null,null,null,null,null,null,"Painting / Coating / Insulation","Surface/Rust/Corrosion"]
[null,null,null,null,null,null,null,null,null,null,null,null,null,null,"Post Weld Heat Treatment","Crack Formation"]
[null,null,null,null,null,null,null,null,null,null,null,null,null,null,"Post Weld Heat Treatment","Distortion"]
[null,null,null,null,null,null,null,null,null,null,null,null,null,null,"Post Weld Heat Treatment","Embrittlement"]
[null,null,null,null,null,null,null,null,null,null,null,null,null,null,"Post Weld Heat Treatment","Oxidation"]
[null,null,null,null,null,null,null,null,null,null,null,null,null,null,"Post Weld Heat Treatment","Soft Spots, Lower Hardness and Strength"]
[null,null,null,null,null,null,null,null,null,null,null,null,null,null,"Pressure Vault","Control Not Performed"]
[null,null,null,null,null,null,null,null,null,null,null,null,null,null,"Pressure Vault","Defect on Wire"]
[null,null,null,null,null,null,null,null,null,null,null,null,null,null,"Pressure Vault","Deformation"]
[null,null,null,null,null,null,null,null,null,null,null,null,null,null,"Pressure Vault","Diameter Out of Criteria"]
[null,null,null,null,null,null,null,null,null,null,null,null,null,null,"Pressure Vault","Elongation Out of Criteria"]
[null,null,null,null,null,null,null,null,null,null,null,null,null,null,"Pressure Vault","Oxidation"]
[null,null,null,null,null,null,null,null,null,null,null,null,null,null,"Pressure Vault","Pitch Out of Criteria"]
[null,null,null,null,null,null,null,null,null,null,null,null,null,null,"Pressure Vault","Sloping Defect"]
[null,null,null,null,null,null,null,null,null,null,null,null,null,null,"Pressure Vault","Traceability"]
[null,null,null,null,null,null,null,null,null,null,null,null,null,null,"Pressure Vault","Unlocking"]
[null,null,null,null,null,null,null,null,null,null,null,null,null,null,"Pressure Vault","Weld Defect"]
[null,null,null,null,null,null,null,null,null,null,null,null,null,null,"Rebatch","Breakdown"]
[null,null,null,null,null,null,null,null,null,null,null,null,null,null,"Rebatch","Damage"]
[null,null,null,null,null,null,null,null,null,null,null,null,null,null,"Rebatch","Data Acquisition"]
[null,null,null,null,null,null,null,null,null,null,null,null,null,null,"Rebatch","Documentation"]
[null,null,null,null,null,null,null,null,null,null,null,null,null,null,"Rebatch","Length"]
[null,null,null,null,null,null,null,null,null,null,null,null,null,null,"Rebatch","Material"]
[null,null,null,null,null,null,null,null,null,null,null,null,null,null,"Rebatch","OD"]
[null,null,null,null,null,null,null,null,null,null,null,null,null,null,"Rebatch","Other"]
[null,null,null,null,null,null,null,null,null,null,null,null,null,null,"Rebatch","Poor Lay"]
[null,null,null,null,null,null,null,null,null,null,null,null,null,null,"Rebatch","Print"]
[null,null,null,null,null,null,null,null,null,null,null,null,null,null,"Rebatch","Stretched Hose"]
[null,null,null,null,null,null,null,null,null,null,null,null,null,null,"Rebatch","Tooling"]
[null,null,null,null,null,null,null,null,null,null,null,null,null,null,"Respool","Breakdown"]
[null,null,null,null,null,null,null,null,null,null,null,null,null,null,"Respool","Damage"]
[null,null,null,null,null,null,null,null,null,null,null,null,null,null,"Respool","Data Acquisition"]
[null,null,null,null,null,null,null,null,null,null,null,null,null,null,"Respool","Deformed"]
[null,null,null,null,null,null,null,null,null,null,null,null,null,null,"Respool","Documentation"]
[null,null,null,null,null,null,null,null,null,null,null,null,null,null,"Respool","Electrical Cables - Damage"]
[null,null,null,null,null,null,null,null,null,null,null,null,null,null,"Respool","Electrical Cables - Length"]
[null,null,null,null,null,null,null,null,null,null,null,null,null,null,"Respool","Electrical Cables - Loading"]
[null,null,null,null,null,null,null,null,null,null,null,null,null,null,"Respool","Electrical Cables - Missing Documentation (C of C, etc.)"]
[null,null,null,null,null,null,null,null,null,null,null,null,null,null,"Respool","Electrical Cables - OD"]
[null,null,null,null,null,null,null,null,null,null,null,null,null,null,"Respool","Electrical Cables - Pitch"]
[null,null,null,null,null,null,null,null,null,null,null,null,null,null,"Respool","Electrical Cables - Poor Lay"]
[null,null,null,null,null,null,null,null,null,null,null,null,null,null,"Respool","Electrical Cables - Scratched"]
[null,null,null,null,null,null,null,null,null,null,null,null,null,null,"Respool","Electrical Cables - Tear in Sheathing"]
[null,null,null,null,null,null,null,null,null,null,null,null,null,null,"Respool","Electrical Cables - Weld"]
[null,null,null,null,null,null,null,null,null,null,null,null,null,null,"Respool","Electrical Cables - Wrong/Missing"]
[null,null,null,null,null,null,null,null,null,null,null,null,null,null,"Respool","Electrical Cables- Contamination"]
[null,null,null,null,null,null,null,null,null,null,null,null,null,null,"Respool","Equipment Failure"]
[null,null,null,null,null,null,null,null,null,null,null,null,null,null,"Respool","Fiber Optics - Contamination"]
[null,null,null,null,null,null,null,null,null,null,null,null,null,null,"Respool","Fiber Optics - Length"]
[null,null,null,null,null,null,null,null,null,null,null,null,null,null,"Respool","Fiber Optics - Loading"]
[null,null,null,null,null,null,null,null,null,null,null,null,null,null,"Respool","Fiber Optics - Missing Documentation (C of C, etc.)"]
[null,null,null,null,null,null,null,null,null,null,null,null,null,null,"Respool","Fiber Optics - OD"]
[null,null,null,null,null,null,null,null,null,null,null,null,null,null,"Respool","Fiber Optics - Pitch"]
[null,null,null,null,null,null,null,null,null,null,null,null,null,null,"Respool","Fiber Optics - Poor Lay"]
[null,null,null,null,null,null,null,null,null,null,null,null,null,null,"Respool","Fiber Optics - Scratched"]
[null,null,null,null,null,null,null,null,null,null,null,null,null,null,"Respool","Fiber Optics - Tear in Sheathing"]
[null,null,null,null,null,null,null,null,null,null,null,null,null,null,"Respool","Fiber Optics - Weld"]
[null,null,null,null,null,null,null,null,null,null,null,null,null,null,"Respool","Fiber Optics - Wrong/Missing"]
[null,null,null,null,null,null,null,null,null,null,null,null,null,null,"Respool","Filler - Deformed"]
[null,null,null,null,null,null,null,null,null,null,null,null,null,null,"Respool","Filler - Length"]
[null,null,null,null,null,null,null,null,null,null,null,null,null,null,"Respool","Filler - Loading"]
[null,null,null,null,null,null,null,null,null,null,null,null,null,null,"Respool","Filler - Missing"]
[null,null,null,null,null,null,null,null,null,null,null,null,null,null,"Respool","Filler - Tension"]
[null,null,null,null,null,null,null,null,null,null,null,null,null,null,"Respool","Filler - Wrong/Missing"]
[null,null,null,null,null,null,null,null,null,null,null,null,null,null,"Respool","Length"]
[null,null,null,null,null,null,null,null,null,null,null,null,null,null,"Respool","Material"]
[null,null,null,null,null,null,null,null,null,null,null,null,null,null,"Respool","OD"]
[null,null,null,null,null,null,null,null,null,null,null,null,null,null,"Respool","Other"]
[null,null,null,null,null,null,null,null,null,null,null,null,null,null,"Respool","PC Strand (Steel Strand) - Contamination"]
[null,null,null,null,null,null,null,null,null,null,null,null,null,null,"Respool","PC Strand (Steel Strand) - Damage"]
[null,null,null,null,null,null,null,null,null,null,null,null,null,null,"Respool","PC Strand (Steel Strand) - Length"]
[null,null,null,null,null,null,null,null,null,null,null,null,null,null,"Respool","PC Strand (Steel Strand) - Loading"]
[null,null,null,null,null,null,null,null,null,null,null,null,null,null,"Respool","PC Strand (Steel Strand) - Missing Documentation"]
[null,null,null,null,null,null,null,null,null,null,null,null,null,null,"Respool","PC Strand (Steel Strand) - OD"]
[null,null,null,null,null,null,null,null,null,null,null,null,null,null,"Respool","PC Strand (Steel Strand) - Pitch"]
[null,null,null,null,null,null,null,null,null,null,null,null,null,null,"Respool","PC Strand (Steel Strand) - Poor Lay"]
[null,null,null,null,null,null,null,null,null,null,null,null,null,null,"Respool","PC Strand (Steel Strand) - Scratched"]
[null,null,null,null,null,null,null,null,null,null,null,null,null,null,"Respool","PC Strand (Steel Strand) - Tear in Sheathing"]
[null,null,null,null,null,null,null,null,null,null,null,null,null,null,"Respool","PC Strand (Steel Strand) - Weld"]
[null,null,null,null,null,null,null,null,null,null,null,null,null,null,"Respool","PC Strand (Steel Strand) - Wrong/Missing"]
[null,null,null,null,null,null,null,null,null,null,null,null,null,null,"Respool","Poor Lay"]
[null,null,null,null,null,null,null,null,null,null,null,null,null,null,"Respool","Speed"]
[null,null,null,null,null,null,null,null,null,null,null,null,null,null,"Respool","Steel tube - Contamination"]
[null,null,null,null,null,null,null,null,null,null,null,null,null,null,"Respool","Steel Tube - Damage"]
[null,null,null,null,null,null,null,null,null,null,null,null,null,null,"Respool","Steel Tube - Length"]
[null,null,null,null,null,null,null,null,null,null,null,null,null,null,"Respool","Steel Tube - Loading"]
[null,null,null,null,null,null,null,null,null,null,null,null,null,null,"Respool","Steel Tube - Missing Documentation (C of C, etc.)"]
[null,null,null,null,null,null,null,null,null,null,null,null,null,null,"Respool","Steel Tube - OD"]
[null,null,null,null,null,null,null,null,null,null,null,null,null,null,"Respool","Steel Tube - Oval"]
[null,null,null,null,null,null,null,null,null,null,null,null,null,null,"Respool","Steel Tube - Poor Lay"]
[null,null,null,null,null,null,null,null,null,null,null,null,null,null,"Respool","Steel Tube - Scratched"]
[null,null,null,null,null,null,null,null,null,null,null,null,null,null,"Respool","Steel Tube - Weld"]
[null,null,null,null,null,null,null,null,null,null,null,null,null,null,"Respool","Steel Tube - Wrong/Missing"]
[null,null,null,null,null,null,null,null,null,null,null,null,null,null,"Respool","Sub Bundle - Crushed"]
[null,null,null,null,null,null,null,null,null,null,null,null,null,null,"Respool","Sub Bundle - Damage"]
[null,null,null,null,null,null,null,null,null,null,null,null,null,null,"Respool","Sub Bundle - Length"]
[null,null,null,null,null,null,null,null,null,null,null,null,null,null,"Respool","Sub Bundle - OD"]
[null,null,null,null,null,null,null,null,null,null,null,null,null,null,"Respool","Sub Bundle - Tension"]
[null,null,null,null,null,null,null,null,null,null,null,null,null,null,"Respool","Tension"]
[null,null,null,null,null,null,null,null,null,null,null,null,null,null,"Respool","Tooling"]
[null,null,null,null,null,null,null,null,null,null,null,null,null,null,"Sheath","Blisters"]
[null,null,null,null,null,null,null,null,null,null,null,null,null,null,"Sheath","Breakaways"]
[null,null,null,null,null,null,null,null,null,null,null,null,null,null,"Sheath","Breakdown"]
[null,null,null,null,null,null,null,null,null,null,null,null,null,null,"Sheath","Bump-Hollow"]
[null,null,null,null,null,null,null,null,null,null,null,null,null,null,"Sheath","Bundle - Crushed"]
[null,null,null,null,null,null,null,null,null,null,null,null,null,null,"Sheath","Contamination"]
[null,null,null,null,null,null,null,null,null,null,null,null,null,null,"Sheath","Control Not Performed"]
[null,null,null,null,null,null,null,null,null,null,null,null,null,null,"Sheath","Crease"]
[null,null,null,null,null,null,null,null,null,null,null,null,null,null,"Sheath","Data Acquisition"]
[null,null,null,null,null,null,null,null,null,null,null,null,null,null,"Sheath","Diameter Out of Criteria (OD)"]
[null,null,null,null,null,null,null,null,null,null,null,null,null,null,"Sheath","Documentation"]
[null,null,null,null,null,null,null,null,null,null,null,null,null,null,"Sheath","Drag Mark"]
[null,null,null,null,null,null,null,null,null,null,null,null,null,null,"Sheath","Electrical Cables - Damage"]
[null,null,null,null,null,null,null,null,null,null,null,null,null,null,"Sheath","Electrical Cables - Length"]
[null,null,null,null,null,null,null,null,null,null,null,null,null,null,"Sheath","Electrical Cables - Loading"]
[null,null,null,null,null,null,null,null,null,null,null,null,null,null,"Sheath","Electrical Cables - Missing Documentation (C of C, etc.)"]
[null,null,null,null,null,null,null,null,null,null,null,null,null,null,"Sheath","Electrical Cables - OD"]
[null,null,null,null,null,null,null,null,null,null,null,null,null,null,"Sheath","Electrical Cables - Pitch"]
[null,null,null,null,null,null,null,null,null,null,null,null,null,null,"Sheath","Electrical Cables - Poor Lay"]
[null,null,null,null,null,null,null,null,null,null,null,null,null,null,"Sheath","Electrical Cables - Scratched"]
[null,null,null,null,null,null,null,null,null,null,null,null,null,null,"Sheath","Electrical Cables - Tear in Sheathing"]
[null,null,null,null,null,null,null,null,null,null,null,null,null,null,"Sheath","Electrical Cables - Weld"]
[null,null,null,null,null,null,null,null,null,null,null,null,null,null,"Sheath","Electrical Cables - Wrong/Missing"]
[null,null,null,null,null,null,null,null,null,null,null,null,null,null,"Sheath","Electrical Cables- Contamination"]
[null,null,null,null,null,null,null,null,null,null,null,null,null,null,"Sheath","Electrical Failure"]
[null,null,null,null,null,null,null,null,null,null,null,null,null,null,"Sheath","Fiber Optics - Contamination"]
[null,null,null,null,null,null,null,null,null,null,null,null,null,null,"Sheath","Fiber Optics - Length"]
[null,null,null,null,null,null,null,null,null,null,null,null,null,null,"Sheath","Fiber Optics - Loading"]
[null,null,null,null,null,null,null,null,null,null,null,null,null,null,"Sheath","Fiber Optics - Missing Documentation (C of C, etc.)"]
[null,null,null,null,null,null,null,null,null,null,null,null,null,null,"Sheath","Fiber Optics - OD"]
[null,null,null,null,null,null,null,null,null,null,null,null,null,null,"Sheath","Fiber Optics - Pitch"]
[null,null,null,null,null,null,null,null,null,null,null,null,null,null,"Sheath","Fiber Optics - Poor Lay"]
[null,null,null,null,null,null,null,null,null,null,null,null,null,null,"Sheath","Fiber Optics - Scratched"]
[null,null,null,null,null,null,null,null,null,null,null,null,null,null,"Sheath","Fiber Optics - Tear in Sheathing"]
[null,null,null,null,null,null,null,null,null,null,null,null,null,null,"Sheath","Fiber Optics - Weld"]
[null,null,null,null,null,null,null,null,null,null,null,null,null,null,"Sheath","Fiber Optics - Wrong/Missing"]
[null,null,null,null,null,null,null,null,null,null,null,null,null,null,"Sheath","Filler - Deformed"]
[null,null,null,null,null,null,null,null,null,null,null,null,null,null,"Sheath","Filler - Length"]
[null,null,null,null,null,null,null,null,null,null,null,null,null,null,"Sheath","Filler - Loading"]
[null,null,null,null,null,null,null,null,null,null,null,null,null,null,"Sheath","Filler - Missing"]
[null,null,null,null,null,null,null,null,null,null,null,null,null,null,"Sheath","Filler - Tension"]
[null,null,null,null,null,null,null,null,null,null,null,null,null,null,"Sheath","Filler - Wrong/Missing"]
[null,null,null,null,null,null,null,null,null,null,null,null,null,null,"Sheath","Flat Area"]
[null,null,null,null,null,null,null,null,null,null,null,null,null,null,"Sheath","Folds"]
[null,null,null,null,null,null,null,null,null,null,null,null,null,null,"Sheath","Improper Setup"]
[null,null,null,null,null,null,null,null,null,null,null,null,null,null,"Sheath","Length Out of Criteria"]
[null,null,null,null,null,null,null,null,null,null,null,null,null,null,"Sheath","Machine / Equipment Capability"]
[null,null,null,null,null,null,null,null,null,null,null,null,null,null,"Sheath","Machine / Equipment Failure"]
[null,null,null,null,null,null,null,null,null,null,null,null,null,null,"Sheath","Marking Out of Criteria"]
[null,null,null,null,null,null,null,null,null,null,null,null,null,null,"Sheath","Material"]
[null,null,null,null,null,null,null,null,null,null,null,null,null,null,"Sheath","Mechanical Failure"]
[null,null,null,null,null,null,null,null,null,null,null,null,null,null,"Sheath","Melt Quality"]
[null,null,null,null,null,null,null,null,null,null,null,null,null,null,"Sheath","Moisture Content"]
[null,null,null,null,null,null,null,null,null,null,null,null,null,null,"Sheath","OD"]
[null,null,null,null,null,null,null,null,null,null,null,null,null,null,"Sheath","OPUS Detection"]
[null,null,null,null,null,null,null,null,null,null,null,null,null,null,"Sheath","Other"]
[null,null,null,null,null,null,null,null,null,null,null,null,null,null,"Sheath","Ovality"]
[null,null,null,null,null,null,null,null,null,null,null,null,null,null,"Sheath","PC Strand (Steel Strand) - Contamination"]
[null,null,null,null,null,null,null,null,null,null,null,null,null,null,"Sheath","PC Strand (Steel Strand) - Damage"]
[null,null,null,null,null,null,null,null,null,null,null,null,null,null,"Sheath","PC Strand (Steel Strand) - Length"]
[null,null,null,null,null,null,null,null,null,null,null,null,null,null,"Sheath","PC Strand (Steel Strand) - Loading"]
[null,null,null,null,null,null,null,null,null,null,null,null,null,null,"Sheath","PC Strand (Steel Strand) - Missing Documentation"]
[null,null,null,null,null,null,null,null,null,null,null,null,null,null,"Sheath","PC Strand (Steel Strand) - OD"]
[null,null,null,null,null,null,null,null,null,null,null,null,null,null,"Sheath","PC Strand (Steel Strand) - Pitch"]
[null,null,null,null,null,null,null,null,null,null,null,null,null,null,"Sheath","PC Strand (Steel Strand) - Poor Lay"]
[null,null,null,null,null,null,null,null,null,null,null,null,null,null,"Sheath","PC Strand (Steel Strand) - Scratched"]
[null,null,null,null,null,null,null,null,null,null,null,null,null,null,"Sheath","PC Strand (Steel Strand) - Tear in Sheathing"]
[null,null,null,null,null,null,null,null,null,null,null,null,null,null,"Sheath","PC Strand (Steel Strand) - Weld"]
[null,null,null,null,null,null,null,null,null,null,null,null,null,null,"Sheath","PC Strand (Steel Strand) - Wrong/Missing"]
[null,null,null,null,null,null,null,null,null,null,null,null,null,null,"Sheath","Perforations"]
[null,null,null,null,null,null,null,null,null,null,null,null,null,null,"Sheath","Poor Lay"]
[null,null,null,null,null,null,null,null,null,null,null,null,null,null,"Sheath","Relaxation Out of Criteria"]
[null,null,null,null,null,null,null,null,null,null,null,null,null,null,"Sheath","Rippling"]
[null,null,null,null,null,null,null,null,null,null,null,null,null,null,"Sheath","Scoring"]
[null,null,null,null,null,null,null,null,null,null,null,null,null,null,"Sheath","Sheath Damage"]
[null,null,null,null,null,null,null,null,null,null,null,null,null,null,"Sheath","Sheath Faults"]
[null,null,null,null,null,null,null,null,null,null,null,null,null,null,"Sheath","Sheathing Stop"]
[null,null,null,null,null,null,null,null,null,null,null,null,null,null,"Sheath","Steel Tube - Contamination"]
[null,null,null,null,null,null,null,null,null,null,null,null,null,null,"Sheath","Steel Tube - Damage"]
[null,null,null,null,null,null,null,null,null,null,null,null,null,null,"Sheath","Steel Tube - Length"]
[null,null,null,null,null,null,null,null,null,null,null,null,null,null,"Sheath","Steel Tube - Loading"]
[null,null,null,null,null,null,null,null,null,null,null,null,null,null,"Sheath","Steel Tube - Missing Documentation (C of C, etc.)"]
[null,null,null,null,null,null,null,null,null,null,null,null,null,null,"Sheath","Steel Tube - OD"]
[null,null,null,null,null,null,null,null,null,null,null,null,null,null,"Sheath","Steel Tube - Oval"]
[null,null,null,null,null,null,null,null,null,null,null,null,null,null,"Sheath","Steel Tube - Poor Lay"]
[null,null,null,null,null,null,null,null,null,null,null,null,null,null,"Sheath","Steel Tube - Scratched"]
[null,null,null,null,null,null,null,null,null,null,null,null,null,null,"Sheath","Steel Tube - Weld"]
[null,null,null,null,null,null,null,null,null,null,null,null,null,null,"Sheath","Steel Tube - Wrong/Missing"]
[null,null,null,null,null,null,null,null,null,null,null,null,null,null,"Sheath","Stripe"]
[null,null,null,null,null,null,null,null,null,null,null,null,null,null,"Sheath","Stuck Imprints"]
[null,null,null,null,null,null,null,null,null,null,null,null,null,null,"Sheath","Sub Bundle - Crushed"]
[null,null,null,null,null,null,null,null,null,null,null,null,null,null,"Sheath","Sub Bundle - Damage"]
[null,null,null,null,null,null,null,null,null,null,null,null,null,null,"Sheath","Sub Bundle - Length"]
[null,null,null,null,null,null,null,null,null,null,null,null,null,null,"Sheath","Sub Bundle - OD"]
[null,null,null,null,null,null,null,null,null,null,null,null,null,null,"Sheath","Sub Bundle - Tension"]
[null,null,null,null,null,null,null,null,null,null,null,null,null,null,"Sheath","Surface Defect"]
[null,null,null,null,null,null,null,null,null,null,null,null,null,null,"Sheath","Surface Finish"]
[null,null,null,null,null,null,null,null,null,null,null,null,null,null,"Sheath","Thickness Out of Criteria"]
[null,null,null,null,null,null,null,null,null,null,null,null,null,null,"Sheath","Tooling"]
[null,null,null,null,null,null,null,null,null,null,null,null,null,null,"Sheath","Traceability"]
[null,null,null,null,null,null,null,null,null,null,null,null,null,null,"Sheath","Undulation"]
[null,null,null,null,null,null,null,null,null,null,null,null,null,null,"Sheath","Watermarks"]
[null,null,null,null,null,null,null,null,null,null,null,null,null,null,"Steel Strip","Contract Review"]
[null,null,null,null,null,null,null,null,null,null,null,null,null,null,"Steel Strip","Criteria Not Conform to Specification"]
[null,null,null,null,null,null,null,null,null,null,null,null,null,null,"Steel Strip","Incorrect Documentation"]
[null,null,null,null,null,null,null,null,null,null,null,null,null,null,"Steel Strip","Notification Incident"]
[null,null,null,null,null,null,null,null,null,null,null,null,null,null,"Steel Strip","Process"]
[null,null,null,null,null,null,null,null,null,null,null,null,null,null,"Steel Strip","Size Out of Criteria"]
[null,null,null,null,null,null,null,null,null,null,null,null,null,null,"Steel Strip","Test Results Out of Criteria"]
[null,null,null,null,null,null,null,null,null,null,null,null,null,null,"Steel Strip","Traceability"]
[null,null,null,null,null,null,null,null,null,null,null,null,null,null,"Steel Strip","Visual Defect"]
[null,null,null,null,null,null,null,null,null,null,null,null,null,null,"Stiffener","Coating Defect"]
[null,null,null,null,null,null,null,null,null,null,null,null,null,null,"Stiffener","Contract Review"]
[null,null,null,null,null,null,null,null,null,null,null,null,null,null,"Stiffener","Criteria Not Conform to Specification"]
[null,null,null,null,null,null,null,null,null,null,null,null,null,null,"Stiffener","Incorrect Documentation"]
[null,null,null,null,null,null,null,null,null,null,null,null,null,null,"Stiffener","Notification Incident"]
[null,null,null,null,null,null,null,null,null,null,null,null,null,null,"Stiffener","Process"]
[null,null,null,null,null,null,null,null,null,null,null,null,null,null,"Stiffener","Size Out of Criteria"]
[null,null,null,null,null,null,null,null,null,null,null,null,null,null,"Stiffener","Test Results Out of Criteria"]
[null,null,null,null,null,null,null,null,null,null,null,null,null,null,"Stiffener","Visual Defect"]
[null,null,null,null,null,null,null,null,null,null,null,null,null,null,"Storage / Logistics","Appropriate Code Not Found"]
[null,null,null,null,null,null,null,null,null,null,null,null,null,null,"Storage / Logistics","Breakdown"]
[null,null,null,null,null,null,null,null,null,null,null,null,null,null,"Storage / Logistics","Corrosion"]
[null,null,null,null,null,null,null,null,null,null,null,null,null,null,"Storage / Logistics","Damage"]
[null,null,null,null,null,null,null,null,null,null,null,null,null,null,"Storage / Logistics","Data Acquisition"]
[null,null,null,null,null,null,null,null,null,null,null,null,null,null,"Storage / Logistics","Documentation"]
[null,null,null,null,null,null,null,null,null,null,null,null,null,null,"Storage / Logistics","Not Found / Missing"]
[null,null,null,null,null,null,null,null,null,null,null,null,null,null,"Storage / Logistics","Other"]
[null,null,null,null,null,null,null,null,null,null,null,null,null,null,"Storage / Logistics","Packaging"]
[null,null,null,null,null,null,null,null,null,null,null,null,null,null,"Storage / Logistics","Preservation"]
[null,null,null,null,null,null,null,null,null,null,null,null,null,null,"Storage / Logistics","Shelf Life Expired"]
[null,null,null,null,null,null,null,null,null,null,null,null,null,null,"Storage / Logistics","Speed"]
[null,null,null,null,null,null,null,null,null,null,null,null,null,null,"Storage / Logistics","Tooling"]
[null,null,null,null,null,null,null,null,null,null,null,null,null,null,"SZ Assembly","Bundle - Assembly"]
[null,null,null,null,null,null,null,null,null,null,null,null,null,null,"SZ Assembly","Bundle - Damage"]
[null,null,null,null,null,null,null,null,null,null,null,null,null,null,"SZ Assembly","Bundle - Length"]
[null,null,null,null,null,null,null,null,null,null,null,null,null,null,"SZ Assembly","Bundle - OD"]
[null,null,null,null,null,null,null,null,null,null,null,null,null,null,"SZ Assembly","Bundle - Orientation"]
[null,null,null,null,null,null,null,null,null,null,null,null,null,null,"SZ Assembly","Bundle - Pitch"]
[null,null,null,null,null,null,null,null,null,null,null,null,null,null,"SZ Assembly","Bundle - Tension"]
[null,null,null,null,null,null,null,null,null,null,null,null,null,null,"SZ Assembly","Bundle - Twist Cycle"]
[null,null,null,null,null,null,null,null,null,null,null,null,null,null,"SZ Assembly","Component - Damage"]
[null,null,null,null,null,null,null,null,null,null,null,null,null,null,"SZ Assembly","Component - Inline Joint / Splice"]
[null,null,null,null,null,null,null,null,null,null,null,null,null,null,"SZ Assembly","Component - Length"]
[null,null,null,null,null,null,null,null,null,null,null,null,null,null,"SZ Assembly","Component - Loading"]
[null,null,null,null,null,null,null,null,null,null,null,null,null,null,"SZ Assembly","Component - Lubrication"]
[null,null,null,null,null,null,null,null,null,null,null,null,null,null,"SZ Assembly","Component - Tension"]
[null,null,null,null,null,null,null,null,null,null,null,null,null,null,"SZ Assembly","Component - Wrong/Missing"]
[null,null,null,null,null,null,null,null,null,null,null,null,null,null,"SZ Assembly","Data Acquisition"]
[null,null,null,null,null,null,null,null,null,null,null,null,null,null,"SZ Assembly","Documentation"]
[null,null,null,null,null,null,null,null,null,null,null,null,null,null,"SZ Assembly","Drum Damage"]
[null,null,null,null,null,null,null,null,null,null,null,null,null,null,"SZ Assembly","Filler - Damage"]
[null,null,null,null,null,null,null,null,null,null,null,null,null,null,"SZ Assembly","Filler - Length"]
[null,null,null,null,null,null,null,null,null,null,null,null,null,null,"SZ Assembly","Filler - Loading"]
[null,null,null,null,null,null,null,null,null,null,null,null,null,null,"SZ Assembly","Filler - Tension"]
[null,null,null,null,null,null,null,null,null,null,null,null,null,null,"SZ Assembly","Filler - Wrong/Missing"]
[null,null,null,null,null,null,null,null,null,null,null,null,null,null,"SZ Assembly","Poor Lay"]
[null,null,null,null,null,null,null,null,null,null,null,null,null,null,"SZ Assembly","String - Damage"]
[null,null,null,null,null,null,null,null,null,null,null,null,null,null,"SZ Assembly","String - Length"]
[null,null,null,null,null,null,null,null,null,null,null,null,null,null,"SZ Assembly","String - Tex"]
[null,null,null,null,null,null,null,null,null,null,null,null,null,null,"SZ Assembly","Tooling Damaged / Missing"]
[null,null,null,null,null,null,null,null,null,null,null,null,null,null,"SZ Assembly","Tracer - Color"]
[null,null,null,null,null,null,null,null,null,null,null,null,null,null,"SZ Assembly","Tracer - Snap"]
[null,null,null,null,null,null,null,null,null,null,null,null,null,null,"Tape","Contamination"]
[null,null,null,null,null,null,null,null,null,null,null,null,null,null,"Tape","Control Not Performed"]
[null,null,null,null,null,null,null,null,null,null,null,null,null,null,"Tape","Overlap"]
[null,null,null,null,null,null,null,null,null,null,null,null,null,null,"Tape","Pitch Out of Spec"]
[null,null,null,null,null,null,null,null,null,null,null,null,null,null,"Tape","Raw Material Out of Criteria"]
[null,null,null,null,null,null,null,null,null,null,null,null,null,null,"Tape","Size Out of Criteria"]
[null,null,null,null,null,null,null,null,null,null,null,null,null,null,"Tape","Slack Tapes on Bundle"]
[null,null,null,null,null,null,null,null,null,null,null,null,null,null,"Tape","Tape Broken"]
[null,null,null,null,null,null,null,null,null,null,null,null,null,null,"Tape","Tape Damage"]
[null,null,null,null,null,null,null,null,null,null,null,null,null,null,"Tape","Tension"]
[null,null,null,null,null,null,null,null,null,null,null,null,null,null,"Tape","Wrong/Missing"]
[null,null,null,null,null,null,null,null,null,null,null,null,null,null,"Testing","Burst Test"]
[null,null,null,null,null,null,null,null,null,null,null,null,null,null,"Testing","Cleanliness/Contamination"]
[null,null,null,null,null,null,null,null,null,null,null,null,null,null,"Testing","Data Acquisition Problem"]
[null,null,null,null,null,null,null,null,null,null,null,null,null,null,"Testing","Documentation"]
[null,null,null,null,null,null,null,null,null,null,null,null,null,null,"Testing","Drain Test Out of Criteria"]
[null,null,null,null,null,null,null,null,null,null,null,null,null,null,"Testing","Electrical Test Out of Criteria"]
[null,null,null,null,null,null,null,null,null,null,null,null,null,null,"Testing","Equipment Out of Criteria"]
[null,null,null,null,null,null,null,null,null,null,null,null,null,null,"Testing","Failed"]
[null,null,null,null,null,null,null,null,null,null,null,null,null,null,"Testing","Fitting Burst"]
[null,null,null,null,null,null,null,null,null,null,null,null,null,null,"Testing","Flexion Test"]
[null,null,null,null,null,null,null,null,null,null,null,null,null,null,"Testing","Fluid Leakage"]
[null,null,null,null,null,null,null,null,null,null,null,null,null,null,"Testing","Function"]
[null,null,null,null,null,null,null,null,null,null,null,null,null,null,"Testing","Gas Leakage"]
[null,null,null,null,null,null,null,null,null,null,null,null,null,null,"Testing","Hardness"]
[null,null,null,null,null,null,null,null,null,null,null,null,null,null,"Testing","Incomplete"]
[null,null,null,null,null,null,null,null,null,null,null,null,null,null,"Testing","Missed Operation"]
[null,null,null,null,null,null,null,null,null,null,null,null,null,null,"Testing","Other"]
[null,null,null,null,null,null,null,null,null,null,null,null,null,null,"Testing","Overpressure"]
[null,null,null,null,null,null,null,null,null,null,null,null,null,null,"Testing","Temperature Out of Criteria"]
[null,null,null,null,null,null,null,null,null,null,null,null,null,null,"Testing","Test Equipment Failure"]
[null,null,null,null,null,null,null,null,null,null,null,null,null,null,"Testing","Tightness Test Out of Criteria"]
[null,null,null,null,null,null,null,null,null,null,null,null,null,null,"Testing","Tooling"]
[null,null,null,null,null,null,null,null,null,null,null,null,null,null,"Testing","Traceability"]
[null,null,null,null,null,null,null,null,null,null,null,null,null,null,"Testing","Traction Test"]
[null,null,null,null,null,null,null,null,null,null,null,null,null,null,"Testing","Wrong Fluid"]
[null,null,null,null,null,null,null,null,null,null,null,null,null,null,"Thermoplastic","Contract Review"]
[null,null,null,null,null,null,null,null,null,null,null,null,null,null,"Thermoplastic","Criteria Not Conform to Specification"]
[null,null,null,null,null,null,null,null,null,null,null,null,null,null,"Thermoplastic","Incorrect Documentation"]
[null,null,null,null,null,null,null,null,null,null,null,null,null,null,"Thermoplastic","Notification Incident"]
[null,null,null,null,null,null,null,null,null,null,null,null,null,null,"Thermoplastic","Packaging Defect"]
[null,null,null,null,null,null,null,null,null,null,null,null,null,null,"Thermoplastic","Process"]
[null,null,null,null,null,null,null,null,null,null,null,null,null,null,"Thermoplastic","Raw Material Out of Criteria"]
[null,null,null,null,null,null,null,null,null,null,null,null,null,null,"Thermoplastic","Test Results Out of Criteria"]
[null,null,null,null,null,null,null,null,null,null,null,null,null,null,"Tooling","Broken"]
[null,null,null,null,null,null,null,null,null,null,null,null,null,null,"Tooling","Loaded Incorrectly"]
[null,null,null,null,null,null,null,null,null,null,null,null,null,null,"Tooling","Poor Design"]
[null,null,null,null,null,null,null,null,null,null,null,null,null,null,"Tooling","Wrong Type For Job"]
[null,null,null,null,null,null,null,null,null,null,null,null,null,null,"Transpool","Abrasion"]
[null,null,null,null,null,null,null,null,null,null,null,null,null,null,"Transpool","Assembly"]
[null,null,null,null,null,null,null,null,null,null,null,null,null,null,"Transpool","Crushed"]
[null,null,null,null,null,null,null,null,null,null,null,null,null,null,"Transpool","Damage"]
[null,null,null,null,null,null,null,null,null,null,null,null,null,null,"Transpool","Drop"]
[null,null,null,null,null,null,null,null,null,null,null,null,null,null,"Transpool","Electrical Cables - Damage"]
[null,null,null,null,null,null,null,null,null,null,null,null,null,null,"Transpool","Electrical Cables - Length"]
[null,null,null,null,null,null,null,null,null,null,null,null,null,null,"Transpool","Electrical Cables - Loading"]
[null,null,null,null,null,null,null,null,null,null,null,null,null,null,"Transpool","Electrical Cables - Missing Documentation (C of C, etc.)"]
[null,null,null,null,null,null,null,null,null,null,null,null,null,null,"Transpool","Electrical Cables - OD"]
[null,null,null,null,null,null,null,null,null,null,null,null,null,null,"Transpool","Electrical Cables - Pitch"]
[null,null,null,null,null,null,null,null,null,null,null,null,null,null,"Transpool","Electrical Cables - Poor Lay"]
[null,null,null,null,null,null,null,null,null,null,null,null,null,null,"Transpool","Electrical Cables - Scratched"]
[null,null,null,null,null,null,null,null,null,null,null,null,null,null,"Transpool","Electrical Cables - Tear in Sheathing"]
[null,null,null,null,null,null,null,null,null,null,null,null,null,null,"Transpool","Electrical Cables - Weld"]
[null,null,null,null,null,null,null,null,null,null,null,null,null,null,"Transpool","Electrical Cables - Wrong/Missing"]
[null,null,null,null,null,null,null,null,null,null,null,null,null,null,"Transpool","Electrical Cables- Contamination"]
[null,null,null,null,null,null,null,null,null,null,null,null,null,null,"Transpool","Electrical Failure"]
[null,null,null,null,null,null,null,null,null,null,null,null,null,null,"Transpool","Exceed Minimum Bend Radius"]
[null,null,null,null,null,null,null,null,null,null,null,null,null,null,"Transpool","Fiber Optics - Contamination"]
[null,null,null,null,null,null,null,null,null,null,null,null,null,null,"Transpool","Fiber Optics - Length"]
[null,null,null,null,null,null,null,null,null,null,null,null,null,null,"Transpool","Fiber Optics - Loading"]
[null,null,null,null,null,null,null,null,null,null,null,null,null,null,"Transpool","Fiber Optics - Missing Documentation (C of C, etc.)"]
[null,null,null,null,null,null,null,null,null,null,null,null,null,null,"Transpool","Fiber Optics - OD"]
[null,null,null,null,null,null,null,null,null,null,null,null,null,null,"Transpool","Fiber Optics - Pitch"]
[null,null,null,null,null,null,null,null,null,null,null,null,null,null,"Transpool","Fiber Optics - Poor Lay"]
[null,null,null,null,null,null,null,null,null,null,null,null,null,null,"Transpool","Fiber Optics - Scratched"]
[null,null,null,null,null,null,null,null,null,null,null,null,null,null,"Transpool","Fiber Optics - Tear in Sheathing"]
[null,null,null,null,null,null,null,null,null,null,null,null,null,null,"Transpool","Fiber Optics - Weld"]
[null,null,null,null,null,null,null,null,null,null,null,null,null,null,"Transpool","Fiber Optics - Wrong/Missing"]
[null,null,null,null,null,null,null,null,null,null,null,null,null,null,"Transpool","Filler - Deformed"]
[null,null,null,null,null,null,null,null,null,null,null,null,null,null,"Transpool","Filler - Length"]
[null,null,null,null,null,null,null,null,null,null,null,null,null,null,"Transpool","Filler - Loading"]
[null,null,null,null,null,null,null,null,null,null,null,null,null,null,"Transpool","Filler - Missing"]
[null,null,null,null,null,null,null,null,null,null,null,null,null,null,"Transpool","Filler - Tension"]
[null,null,null,null,null,null,null,null,null,null,null,null,null,null,"Transpool","Filler - Wrong/Missing"]
[null,null,null,null,null,null,null,null,null,null,null,null,null,null,"Transpool","Improper Setup"]
[null,null,null,null,null,null,null,null,null,null,null,null,null,null,"Transpool","Kinked"]
[null,null,null,null,null,null,null,null,null,null,null,null,null,null,"Transpool","Length"]
[null,null,null,null,null,null,null,null,null,null,null,null,null,null,"Transpool","Loading"]
[null,null,null,null,null,null,null,null,null,null,null,null,null,null,"Transpool","Mechanical Failure"]
[null,null,null,null,null,null,null,null,null,null,null,null,null,null,"Transpool","Milking"]
[null,null,null,null,null,null,null,null,null,null,null,null,null,null,"Transpool","OD"]
[null,null,null,null,null,null,null,null,null,null,null,null,null,null,"Transpool","PC Strand (Steel Strand) - Contamination"]
[null,null,null,null,null,null,null,null,null,null,null,null,null,null,"Transpool","PC Strand (Steel Strand) - Damage"]
[null,null,null,null,null,null,null,null,null,null,null,null,null,null,"Transpool","PC Strand (Steel Strand) - Length"]
[null,null,null,null,null,null,null,null,null,null,null,null,null,null,"Transpool","PC Strand (Steel Strand) - Loading"]
[null,null,null,null,null,null,null,null,null,null,null,null,null,null,"Transpool","PC Strand (Steel Strand) - Missing Documentation"]
[null,null,null,null,null,null,null,null,null,null,null,null,null,null,"Transpool","PC Strand (Steel Strand) - OD"]
[null,null,null,null,null,null,null,null,null,null,null,null,null,null,"Transpool","PC Strand (Steel Strand) - Pitch"]
[null,null,null,null,null,null,null,null,null,null,null,null,null,null,"Transpool","PC Strand (Steel Strand) - Poor Lay"]
[null,null,null,null,null,null,null,null,null,null,null,null,null,null,"Transpool","PC Strand (Steel Strand) - Scratched"]
[null,null,null,null,null,null,null,null,null,null,null,null,null,null,"Transpool","PC Strand (Steel Strand) - Tear in Sheathing"]
[null,null,null,null,null,null,null,null,null,null,null,null,null,null,"Transpool","PC Strand (Steel Strand) - Weld"]
[null,null,null,null,null,null,null,null,null,null,null,null,null,null,"Transpool","PC Strand (Steel Strand) - Wrong/Missing"]
[null,null,null,null,null,null,null,null,null,null,null,null,null,null,"Transpool","Pitch"]
[null,null,null,null,null,null,null,null,null,null,null,null,null,null,"Transpool","Steel tube - Contamination"]
[null,null,null,null,null,null,null,null,null,null,null,null,null,null,"Transpool","Steel Tube - Damage"]
[null,null,null,null,null,null,null,null,null,null,null,null,null,null,"Transpool","Steel Tube - Length"]
[null,null,null,null,null,null,null,null,null,null,null,null,null,null,"Transpool","Steel Tube - Loading"]
[null,null,null,null,null,null,null,null,null,null,null,null,null,null,"Transpool","Steel Tube - Missing Documentation (C of C, etc.)"]
[null,null,null,null,null,null,null,null,null,null,null,null,null,null,"Transpool","Steel Tube - OD"]
[null,null,null,null,null,null,null,null,null,null,null,null,null,null,"Transpool","Steel Tube - Oval"]
[null,null,null,null,null,null,null,null,null,null,null,null,null,null,"Transpool","Steel Tube - Poor Lay"]
[null,null,null,null,null,null,null,null,null,null,null,null,null,null,"Transpool","Steel Tube - Scratched"]
[null,null,null,null,null,null,null,null,null,null,null,null,null,null,"Transpool","Steel Tube - Weld"]
[null,null,null,null,null,null,null,null,null,null,null,null,null,null,"Transpool","Steel Tube - Wrong/Missing"]
[null,null,null,null,null,null,null,null,null,null,null,null,null,null,"Transpool","Sub Bundle - Crushed"]
[null,null,null,null,null,null,null,null,null,null,null,null,null,null,"Transpool","Sub Bundle - Damage"]
[null,null,null,null,null,null,null,null,null,null,null,null,null,null,"Transpool","Sub Bundle - Length"]
[null,null,null,null,null,null,null,null,null,null,null,null,null,null,"Transpool","Sub Bundle - OD"]
[null,null,null,null,null,null,null,null,null,null,null,null,null,null,"Transpool","Sub Bundle - Tension"]
[null,null,null,null,null,null,null,null,null,null,null,null,null,null,"Transpool","Tension"]
[null,null,null,null,null,null,null,null,null,null,null,null,null,null,"Tube Bending","Crack"]
[null,null,null,null,null,null,null,null,null,null,null,null,null,null,"Tube Bending","Dent"]
[null,null,null,null,null,null,null,null,null,null,null,null,null,null,"Tube Bending","Geometry"]
[null,null,null,null,null,null,null,null,null,null,null,null,null,null,"Welding","Concavity"]
[null,null,null,null,null,null,null,null,null,null,null,null,null,null,"Welding","Cracks"]
[null,null,null,null,null,null,null,null,null,null,null,null,null,null,"Welding","Dimension Out of Criteria"]
[null,null,null,null,null,null,null,null,null,null,null,null,null,null,"Welding","Excessive Root Re-enforcement"]
[null,null,null,null,null,null,null,null,null,null,null,null,null,null,"Welding","Hardness"]
[null,null,null,null,null,null,null,null,null,null,null,null,null,null,"Welding","Inclusion (slag, tungsten, or non-met.)"]
[null,null,null,null,null,null,null,null,null,null,null,null,null,null,"Welding","Internal Root Protrusion (IRP)"]
[null,null,null,null,null,null,null,null,null,null,null,null,null,null,"Welding","LOF, LOP, or IP (see text)"]
[null,null,null,null,null,null,null,null,null,null,null,null,null,null,"Welding","Machine / Equipment Capability"]
[null,null,null,null,null,null,null,null,null,null,null,null,null,null,"Welding","Machine / Equipment Failure"]
[null,null,null,null,null,null,null,null,null,null,null,null,null,null,"Welding","Management / Procedure Not Referenced"]
[null,null,null,null,null,null,null,null,null,null,null,null,null,null,"Welding","Methods / Inadequate Processes and/or Procedures"]
[null,null,null,null,null,null,null,null,null,null,null,null,null,null,"Welding","Porosity"]
[null,null,null,null,null,null,null,null,null,null,null,null,null,null,"Welding","Surface Roughness/ Profile"]
[null,null,null,null,null,null,null,null,null,null,null,null,null,null,"Welding","Thickness Reduction"]
[null,null,null,null,null,null,null,null,null,null,null,null,null,null,"Welding","Undercut"]
[null,null,null,null,null,null,null,null,null,null,null,null,null,null,"Welding","Weld Spatter"]
[null,null,null,null,null,null,null,null,null,null,null,null,null,null,"Welding","Welding Process Error (out of WPS range)"]
[null,null,null,null,null,null,null,null,null,null,null,null,null,null,"Wire","Contract Review"]
[null,null,null,null,null,null,null,null,null,null,null,null,null,null,"Wire","Control Not Performed"]
[null,null,null,null,null,null,null,null,null,null,null,null,null,null,"Wire","Criteria Not Conform to Specification"]
[null,null,null,null,null,null,null,null,null,null,null,null,null,null,"Wire","Defect on Wire"]
[null,null,null,null,null,null,null,null,null,null,null,null,null,null,"Wire","Entangled Wire"]
[null,null,null,null,null,null,null,null,null,null,null,null,null,null,"Wire","Incorrect Documentation"]
[null,null,null,null,null,null,null,null,null,null,null,null,null,null,"Wire","Lack of Wire"]
[null,null,null,null,null,null,null,null,null,null,null,null,null,null,"Wire","NACE Test Out of Criteria"]
[null,null,null,null,null,null,null,null,null,null,null,null,null,null,"Wire","Notification Incident"]
[null,null,null,null,null,null,null,null,null,null,null,null,null,null,"Wire","Oxidation"]
[null,null,null,null,null,null,null,null,null,null,null,null,null,null,"Wire","Packaging Defect"]
[null,null,null,null,null,null,null,null,null,null,null,null,null,null,"Wire","Process"]
[null,null,null,null,null,null,null,null,null,null,null,null,null,null,"Wire","Raw Material Out of Criteria"]
[null,null,null,null,null,null,null,null,null,null,null,null,null,null,"Wire","Size Out of Criteria"]
[null,null,null,null,null,null,null,null,null,null,null,null,null,null,"Wire","Test Results Out of Criteria"]
[null,null,null,null,null,null,null,null,null,null,null,null,null,null,"Wire","Traceability"]
[null,null,null,null,null,null,null,null,null,null,null,null,null,null,"Wire","Weld Defect"]
[null,null,null,null,null,null,null,null,null,null,null,null,null,null,"Wire","Weld Location"]
[null,null,null,null,null,null,null,null,null,null,null,null,null,null,"Wire","White Marks Out of Criteria"]
[null,null,null,null,null,null,null,null,null,null,null,null,null,null,"Wire","Wrong PVCF/ECT Report"]
[null,null,null,null,null,null,null,null,null,null,null,null,null,null,"Yarn Winding","Breakdown"]
[null,null,null,null,null,null,null,null,null,null,null,null,null,null,"Yarn Winding","Data Acquisition"]
[null,null,null,null,null,null,null,null,null,null,null,null,null,null,"Yarn Winding","Documentation"]
[null,null,null,null,null,null,null,null,null,null,null,null,null,null,"Yarn Winding","Excess Splices"]
[null,null,null,null,null,null,null,null,null,null,null,null,null,null,"Yarn Winding","Material"]
[null,null,null,null,null,null,null,null,null,null,null,null,null,null,"Yarn Winding","Other"]
[null,null,null,null,null,null,null,null,null,null,null,null,null,null,"Yarn Winding","Poor Lay"]
[null,null,null,null,null,null,null,null,null,null,null,null,null,null,"Yarn Winding","Soft Bobbon"]
[null,null,null,null,null,null,null,null,null,null,null,null,null,null,"Yarn Winding","Soft Cheese"]
[null,null,null,null,null,null,null,null,null,null,null,null,null,null,"Yarn Winding","Splice Failure"]
[null,null,null,null,null,null,null,null,null,null,null,null,null,null,"Yarn Winding","Splice Not Identified"]
[null,null,null,null,null,null,null,null,null,null,null,null,null,null,"Yarn Winding","Tension"]
[null,null,null,null,null,null,null,null,null,null,null,null,null,null,"Yarn Winding","Tooling"]
[null,null,null,null,null,null,null,null,null,null,null,null,null,null,"Yarn Winding","Yarn - Contamination"]
[null,null,null,null,null,null,null,null,null,null,null,null,null,null,"Yarn Winding","Yarn - Damage"]
[null,null,null,null,null,null,null,null,null,null,null,null,null,null,"Yarn Winding","Yarn - Degradation"]
[null,null,null,null,null,null,null,null,null,null,null,null,null,null,"Yarn Winding","Yarn - Length"]
[null,null,null,null,null,null,null,null,null,null,null,null,null,null,"Yarn Winding","Yarn - Mark"]
[null,null,null,null,null,null,null,null,null,null,null,null,null,null,"Yarn Winding","Yarn - Slack"]
[null,null,null,null,null,null,null,null,null,null,null,null,null,null,"Yarn Winding","Yarn - Snap"]
[null,null,null,null,null,null,null,null,null,null,null,null,null,null,"Yarn Winding","Yarn - Tails"]
[null,null,null,null,null,null,null,null,null,null,null,null,null,null,"Yarn Winding","Yarn - Tex"]
[null,null,null,null,null,null,null,null,null,null,null,null,null,null,"Yarn Winding","Yarn - Type Incorrect"]

{"sheet":"Instructions NON-SAP","index":6,"n_rows":84,"n_cols":2,"rows_kept":84,"cut":false,"hidden":true,"merged":[[82,0,82,2],[83,0,83,2],[49,0,54,0],[0,0,0,1],[36,0,36,1],[37,0,43,0],[55,0,57,0],[69,0,70,2]]}
["NCR Instructions"]
["Field","Description"]
["General"]
[" Reset Form Fields","This button will empty all the \"filled-in\" cells, except the following References fields:\n\nIt will also reset all selected buttons (i.e. a blank form), We advise all suppliers to Reset before filling in, this is in case supplier is using a prefilled form from before,\n"]
["Practical Info.","Supplier shall  fill in either Pre-PO information Or Post PO not Both,                                                                                                        If PO exist, then start the form by filling in the PO ( Post PO- LINE 13) , select the correct Coding  from the Menu and fill in the rest of mandatory fields.                                                                                                                                                                                                  if PO doesnt exist , Pre PO selection(Line 8) shall be filled in: start the form by filling in the Bid number , select the correct Coding and continue filling in the mandatory fields."]
["REFERENCES"]
["The Coding:\n• Concession Request\n• Deviation Request\n• Technical Clarification","This is how Supplier generated QNs are categorized.  This shall be filled in by the Supplier. \nOnly one code can be selected from the Coding Menu, and selecting between buttons will result in setting \"N/A\" in some the cells. "]
[" Created Date","The date the Supplier generated the NCR Form."]
[" Bid Number, when Pre-PO","TechnipFMC Bid number. Only ONE Bid Number per NCR form. You can either enter a bid number Or PO #; Not both. "]
[" Purchase Order (PO), POST PO","TechnipFMC purchase order number. Only ONE PO# per NCR form. "]
[" PO Line","TechnipFMC purchase order line item number. "]
["If Service PO, add Yes","Suppliers to fill in YES or NO from the menu"]
[" Supplier Internal NCR Reference\n","Supplier specific number to track Quality Notifications (QN) before a QN number is assigned by SAP.  This number will be tracked by the Supplier to ensure no duplicates are created. The format is the SAP vendor number-XXXXX, with the last five digits being non-duplicating."]
[" Supplier Name","Supplier full legal entity name with no abbreviations."]
[" Supplier Contact Name","The person that should be contacted with any questions regarding the information on the QN."]
[" Supplier Contact Phone","The contact person's phone number."]
[" TechnipFMC SQE Name","The regional TechnipFMC Supplier Quality Engineer (SQE) who trains and develops the Supplier."]
["TechnipFMC Package manager Name:","The TechnipFMC Commercial Point of Contact, "]
[" Concession Request","\nDefect detected and reported by Supplier in a later stage  and after the work is already done(Post realization). Supplier shall propose a solution, and TechnipFMC provide a disposition.                                                                                 This also includes Product Alerts / Recalls. In case of the product Alerts/ Recalls supplier shall use Post PO Placement Concession coding  per part number and  if more than one Purchase Order is impacted by the same Product Alert / Recall, then the Supplier shall reference all applicable Purchase Orders impacted in the Containment Action field of the NCR form. Supplier shall also list all the affected Serial numbers on the Serial number field of the NCR Form.\n"]
[" Deviation Request","Request to deviate from the required specification, prior to the work being done, e.g. material substitution, heat treat time, etc."]
[" Technical Clarification ","A request for clarity or to obtain detailed information concerning technical requirements, e.g. engineering specifications, drawings, BOM, production requirements."]
[" Who discovered the defect?","Select from dropdown menu if Supplier or Source Inspector discovered the defect."]
["PRODUCT DETAILS"]
["TechnipFMC reference on the PO, example: Part Nr./Drawing Nr./ Material Requisition Number etc.","Supplier  can add  the refrence from PO and what is applicable, example: Part Nr.or  Drawing Nr., or Material Requisition Number etc."]
["Revision","Revision of the  refrence on the PO  : part/ Drawing number/material req. Number etc. on the PO reflecting  the above field."]
["Project number /Name","Project name or number from the PO"]
["Serial Number /TAG Number ","Add relevant  Traceability : Serial Nr./ Tag number"]
["Part item Description:","Description of the part on the PO."]
["Defect Quantity","Total number of defects from the part number on the PO."]
["CLASSIFICATIONS"]
["Main Defect code","Select  from drop down menu. "]
["Sub-Defect code","Select from drop down menu. "]
["Main Cause Code","Select from drop down menu. "]
["Sub-Cause Code","Select from drop down menu."]
["Defect Comments","Additional information  can be added here. If this is already covered by the Defect code  menus  put NA"]
["Cause Comments","Additional information  can be added here. If this is already covered by the Cause code menus put NA"]
["DESCRIPTION OF FINDING AND ACTIONS"]
["Detailed Description of Finding","The description should be concise and include all of the following information in every case:"]
[null,"Description of the defect or problem"]
[null,"Measured size (when applicable)"]
[null,"Measured depth (when applicable)"]
[null,"Measured location of the defect (when applicable)"]
[null,"This measurement should be from an existing datum on the drawing which should be noted along with the grid location on the drawing (i.e., “located at A3 on drawing 1111DU11111111”)"]
[null,"List of TechnipFMC Requirements/Specifications"]
["Source of Requirement","Where is the requirement coming from? Name the document number, revision, and sections if possible."]
["Requirement","What is the requirement? Be specific, clear, and concise. Paraphrase or quote the actual requirement from the source."]
["Actual (Only for Concession Request)","Simply state the defect."]
["Defect Description","Explain the actual state / non-conformance in detail. Give measurements, locations, etc. Attach helpful evidence; i.e. pictures, mark-ups, inspection reports, etc. "]
["Containment Action","Explain how the non-conformance has been physically controlled. How has unintended use been prevented?"]
["Root Cause Analysis \nOnly for Concession Request","This section of the form is critical to determine the real reason why the non-conformance was caused."]
[null,"Provide a 5-Why  for Concession Requests. Why did this non-conformance occur? "]
[null,"Continuing to ask why until the real root cause is determined will help reduce future occurrences of this problem."]
[null,"This explanation should be detailed and address the root cause of the non-conformance; not the symptoms. "]
[null,"If the 5-Why tool is not sufficient to reach the root cause, a Cause and Effect Diagram (Fishbone) or 8-D can be used and attached to this NCR."]
[null,"NOTE: The NCR type Concession will not be entered into TechnipFMC system for disposition until a Root Cause Analysis is provided. "]
["Proposed Solution","A proposed solution to bring the part as close to conforming to the Part Report / Drawing/Material requision number etc. as possible."]
[null,"This should include a detailed description of the process to be followed to repair the part."]
[null,"This should note exactly which requirements will not be met after repairing or processing the part. (i.e., after repair, the diameter will be +.002” out of tolerance)"]
["Corrective Action\n(Only for Concession Request)","Address the plan to reduce and eliminate the non-conformance in the future. This explanation should compliment the above Root Cause Analysis section.\nNote: It is not necessary for the Corrective Action to be put in place at the Supplier at time of NCR submittal. However, the plan must be described prior to the NCR being entered into TechnipFMC' system for disposition."]
[null,"The relese note below contain information about the current release and contact information for technical support for the VBA macros in this NCR form. Please click the button below to show the information (password is required)"]
[]
[]
[]
[]
[]
[]
[]
[]
[]
["Release Note (for VBA macros)"]
[]
[]
["VBA Created by","Layth Alattar"]
["Email","Layth.alattar@technipfmc.com"]
[]
["VBA technical support\n(only for TechnipFMC users.)\n\nFor technical support of supplier users, please use the contact information in the front page.","Layth Alattar\nLayth.alattar@technipfmc.com"]
[]
["Document number","GTF-COR-21011"]
["Document Name","SUPPLIER NON-CONFORMANCE REPORT FORM"]
["Revision",0]
[]
[]
["Summary of changes in this release"]
["• The main improvement from Rev H ro Rav I is solving the problem with disappearing of the button selection in the NCR tab. I.e when we select \"concession\" and save the document, when we open the document again the button selection is cleared.\n\n• New VBA macros to make sure that all required field are filed in.\n\n• VBA macro called \"Empty Cell checker\" to give an overview of all the empty cells, and to give a warning message if any mandatory cells left blank.\n\n•VBA macro to Reset Form (i.e. empty all cells and reset all buttons).\n\n• Important feature! The supplier can only save the \"Form\" with a mandatory \"warning text\" at the top of the document in case any mandatory cells were left blank. The TechnipFMC user can still be able to save the Form without the mandatory \"warning text\" by using the administrator password.\nThis feature prevents from sending uncomplete Form to technipFMC since the a mandatory \"warning text\" will be always at the top, in case any mandatory cells were left blank\n\n•Remove the \"Contaiment Action\" form the mandatory cells for Pre-Po \"Deviation\" and  Pre-Po \"Technical Clarification\".\n\n"]

{"sheet":"Main & Sub Causes","index":7,"n_rows":22,"n_cols":8,"rows_kept":22,"cut":false,"hidden":true,"merged":[]}
["Code group","Code",null,null,null,"QDC00001_Vendor_Related",null,"QDC00002_internal_TechnipFMC"]
["QDC_0001_Vendor_Related","0010_Welding",null,"Subcausegroups",null,"0010_Welding",null,"0010_Requirements not followed"]
["QDC_0001_Vendor_Related","0020_Machining",null,"QDC00001_Vendor_Related",null,"0020_Machining",null,"0020_Requirements not known"]
["QDC_0001_Vendor_Related","0030_Corrosion",null,"QDC00002_internal_TechnipFMC",null,"0030_Corrosion",null,"0030_Process not followed"]
["QDC_0001_Vendor_Related","0040_Contamination",null,null," ","0040_Contamination",null,"0040_Requirements not communicated"]
["QDC_0001_Vendor_Related","0050_ Marking",null,null,null,"0050_ Marking",null,"0050_ECN not communicated"]
["QDC_0001_Vendor_Related","0060_Delivery (missing/incorrect parts)",null,null,null,"0060_Delivery (missing/incorrect parts)",null,"0060_Wrong document / spec communicated"]
["QDC_0001_Vendor_Related","0070_Assembly error",null,null,null,"0070_Assembly error",null,"0070_Error in document / spec communicated"]
["QDC_0001_Vendor_Related","0080_Material error",null,null,null,"0080_Material error"]
["QDC_0001_Vendor_Related","0090_Sub-Tier Supplier",null,null,null,"0090_Sub-Tier Supplier"]
["QDC_0001_Vendor_Related","0110_Packaging/Handling",null,null,null,"0110_Packaging/Handling"]
["QDC_0001_Vendor_Related","0120_Damage during transport",null,null,null,"0120_Damage during transport"]
["QDC_0001_Vendor_Related","0130_Coating Defect",null,null,null,"0130_Coating Defect"]
["QDC_0001_Vendor_Related","0140_Documentation",null,null,null,"0140_Documentation"]
["QDC_0001_Vendor_Related","0150_Other- Specify in comments"]
["QDC_0002_internal_TechnipFMC","0010_Requirements not followed"]
["QDC_0002_internal_TechnipFMC","0020_Requirements not known"]
["QDC_0002_internal_TechnipFMC","0030_Process not followed",null,null,null," "]
["QDC_0002_internal_TechnipFMC","0040_Requirements not communicated",null,null,null,null," "]
["QDC_0002_internal_TechnipFMC","0050_ECN not communicated"]
["QDC_0002_internal_TechnipFMC","0060_Wrong document / spec communicated",null,null,null," "]
["QDC_0002_internal_TechnipFMC","0070_Error in document / spec communicated"]